Workbook

Sheet CONTROL VEHICULOS 2018
K1: Promedio Anual Estimado | M1: GASTO ANUAL MANTENIMIENTO | Q1: GASTO ANUAL GASOIL TALLER | U1: GASTO ANUAL GASOIL EXTERNO | AK1: GASTO MENSUAL FURGONETA | AP1: GASTO MENSUAL FURGONETA | AU1: GASTO MENSUAL FURGONETA | AZ1: GASTO MENSUAL TURISMO (ROJO) | BE1: GASTO MENSUAL TURISMO (MERCEDES) | BJ1: GASTO MENSUAL TURISMO (BLANCO) | BO1: GASTO MENSUAL TURISMO (BMW) | BT1: GASTO MENSUAL TURISMO (OPEL) | BY1: GASTO MENSUAL TURISMO (PEUGEOT)
K2: PRECIO LITRO GASOIL | M2: TOTAL | N2: =M7+M12+Q7+Q12+U7+U12+Y7+Y12+AC7+AC12+AG7+AG12 -> 1174.13 | Q2: TOTAL | R2: =N7+N12+R7+R12+V7+V12+Z7+Z12+AD7+AD12+AH7+AH12 -> 295.92 | U2: TOTAL | V2: =O7+O12+S7+S12+W7+W12+AA7+AA12+AE7+AE12+AI7+AI12 -> 418 | AK2: ='DATOS PARA LISTAS DE MENU'!C4 -> 9069 GZH | AL2: ='DATOS PARA LISTAS DE MENU'!A4 -> T1 | AP2: ='DATOS PARA LISTAS DE MENU'!C5 -> 8343 HLJ | AQ2: ='DATOS PARA LISTAS DE MENU'!A5 -> T2 | AU2: ='DATOS PARA LISTAS DE MENU'!C6 -> 5485 DFJ | AV2: ='DATOS PARA LISTAS DE MENU'!A6 -> T3 | AZ2: ='DATOS PARA LISTAS DE MENU'!C7 -> 8661 FPY | BA2: ='DATOS PARA LISTAS DE MENU'!A7 -> T4 | BE2: ='DATOS PARA LISTAS DE MENU'!C8 -> 5343 HZY | BF2: ='DATOS PARA LISTAS DE MENU'!A8 -> T1 | BJ2: ='DATOS PARA LISTAS DE MENU'!C9 -> 8518 HYY | BK2: ='DATOS PARA LISTAS DE MENU'!A9 -> T2 | BO2: ='DATOS PARA LISTAS DE MENU'!C10 -> 8146 DCG | BP2: ='DATOS PARA LISTAS DE MENU'!A10 -> T3 | BT2: ='DATOS PARA LISTAS DE MENU'!C11 -> 6189 GRV | BU2: ='DATOS PARA LISTAS DE MENU'!A11 -> T4 | BY2: ='DATOS PARA LISTAS DE MENU'!C12 -> 0035 DNY | BZ2: ='DATOS PARA LISTAS DE MENU'!A12 -> T1
K3: =AVERAGE('DATOS PARA LISTAS DE MENU'!I4:I12) -> 1.08 | AL3: Mantenimiento | AM3: Gasoil Taller | AN3: Gasoil Externo | AQ3: Mantenimiento | AR3: Gasoil Taller | AS3: Gasoil Externo | AV3: Mantenimiento | AW3: Gasoil Taller | AX3: Gasoil Externo | BA3: Mantenimiento | BB3: Gasoil Taller | BC3: Gasoil Externo | BF3: Mantenimiento | BG3: Gasoil Taller | BH3: Gasoil Externo | BK3: Mantenimiento | BL3: Gasoil Taller | BM3: Gasoil Externo | BP3: Mantenimiento | BQ3: Gasoil Taller | BR3: Gasoil Externo | BU3: Mantenimiento | BV3: Gasoil Taller | BW3: Gasoil Externo | BZ3: Mantenimiento | CA3: Gasoil Taller | CB3: Gasoil Externo
A5: ='DATOS PARA LISTAS DE MENU'!B4 -> FURGONETA | B5: ='DATOS PARA LISTAS DE MENU'!C4 -> 9069 GZH | C5: ='DATOS PARA LISTAS DE MENU'!A4 -> T1 | D5: Gasto TOTAL Mantenimiento | E5: =SUMIF(Tabla1[MATRICULA],B5,Tabla1[€/SERVICIO]) -> 0 | F5: Gasto TOTAL Gasoil TALLER | G5: =SUMIFS(Tabla1[€/GASOIL],Tabla1[MATRICULA],B5,Tabla1[DESCRIPCIÓN DEL SERVICIO],"Repostar GASOIL / TALLER") -> 43.2 | H5: Gasto TOTAL Gasoil EXTERNO | I5: =SUMIFS(Tabla1[€/GASOIL],Tabla1[MATRICULA],B5,Tabla1[DESCRIPCIÓN DEL SERVICIO],"Repostar GASOIL / Externo") -> 0 | M5: Gasto ENERO | Q5: Gasto MARZO | U5: Gasto MAYO | Y5: Gasto JULIO | AC5: Gasto SEPTIEMBRE | AG5: Gasto NOVIEMBRE | AK5: Enero | AL5: =SUMIFS(Tabla1[€/SERVICIO],Tabla1[13/06/2018],">=01/01/2018",Tabla1[13/06/2018],"<=31/01/2018",Tabla1[MATRICULA],B5) -> 0 | AM5: =SUMIFS(Tabla1[€/GASOIL],Tabla1[13/06/2018],">=01/01/2018",Tabla1[13/06/2018],"<=31/01/2018",Tabla1[DESCRIPCIÓN DEL SERVICIO],"Repostar GASOIL / TALLER",Tabla1[MATRICULA],B5) -> 0 | AN5: =SUMIFS(Tabla1[€/GASOIL],Tabla1[13/06/2018],">=01/01/2018",Tabla1[13/06/2018],"<=31/01/2018",Tabla1[DESCRIPCIÓN DEL SERVICIO],"Repostar GASOIL / Externo",Tabla1[MATRICULA],B5) -> 0 | AP5: Enero | AQ5: =SUMIFS(Tabla1[€/SERVICIO],Tabla1[13/06/2018],">=01/01/2018",Tabla1[13/06/2018],"<=31/01/2018",Tabla1[MATRICULA],B6) -> 0 | AR5: =SUMIFS(Tabla1[€/GASOIL],Tabla1[13/06/2018],">=01/01/2018",Tabla1[13/06/2018],"<=31/01/2018",Tabla1[DESCRIPCIÓN DEL SERVICIO],"Repostar GASOIL / TALLER",Tabla1[MATRICULA],B6) -> 0 | AS5: =SUMIFS(Tabla1[€/GASOIL],Tabla1[13/06/2018],">=01/01/2018",Tabla1[13/06/2018],"<=31/01/2018",Tabla1[DESCRIPCIÓN DEL SERVICIO],"Repostar GASOIL / Externo",Tabla1[MATRICULA],B6) -> 0 | AU5: Enero | AV5: =SUMIFS(Tabla1[€/SERVICIO],Tabla1[13/06/2018],">=01/01/2018",Tabla1[13/06/2018],"<=31/01/2018",Tabla1[MATRICULA],B7) -> 0 | AW5: =SUMIFS(Tabla1[€/GASOIL],Tabla1[13/06/2018],">=01/01/2018",Tabla1[13/06/2018],"<=31/01/2018",Tabla1[DESCRIPCIÓN DEL SERVICIO],"Repostar GASOIL / TALLER",Tabla1[MATRICULA],B7) -> 0 | AX5: =SUMIFS(Tabla1[€/GASOIL],Tabla1[13/06/2018],">=01/01/2018",Tabla1[13/06/2018],"<=31/01/2018",Tabla1[DESCRIPCIÓN DEL SERVICIO],"Repostar GASOIL / Externo",Tabla1[MATRICULA],B7) -> 0 | AZ5: Enero | BA5: =SUMIFS(Tabla1[€/SERVICIO],Tabla1[13/06/2018],">=01/01/2018",Tabla1[13/06/2018],"<=31/01/2018",Tabla1[MATRICULA],B8) -> 421.89 | BB5: =SUMIFS(Tabla1[€/GASOIL],Tabla1[13/06/2018],">=01/01/2018",Tabla1[13/06/2018],"<=31/01/2018",Tabla1[DESCRIPCIÓN DEL SERVICIO],"Repostar GASOIL / TALLER",Tabla1[MATRICULA],B8) -> 0 | BC5: =SUMIFS(Tabla1[€/GASOIL],Tabla1[13/06/2018],">=01/01/2018",Tabla1[13/06/2018],"<=31/01/2018",Tabla1[DESCRIPCIÓN DEL SERVICIO],"Repostar GASOIL / Externo",Tabla1[MATRICULA],B8) -> 34 | BE5: Enero | BF5: =SUMIFS(Tabla1[€/SERVICIO],Tabla1[13/06/2018],">=01/01/2018",Tabla1[13/06/2018],"<=31/01/2018",Tabla1[MATRICULA],B9) -> 0 | BG5: =SUMIFS(Tabla1[€/GASOIL],Tabla1[13/06/2018],">=01/01/2018",Tabla1[13/06/2018],"<=31/01/2018",Tabla1[DESCRIPCIÓN DEL SERVICIO],"Repostar GASOIL / TALLER",Tabla1[MATRICULA],B9) -> 0 | BH5: =SUMIFS(Tabla1[€/GASOIL],Tabla1[13/06/2018],">=01/01/2018",Tabla1[13/06/2018],"<=31/01/2018",Tabla1[DESCRIPCIÓN DEL SERVICIO],"Repostar GASOIL / Externo",Tabla1[MATRICULA],B9) -> 0 | BJ5: Enero | BK5: =SUMIFS(Tabla1[€/SERVICIO],Tabla1[13/06/2018],">=01/01/2018",Tabla1[13/06/2018],"<=31/01/2018",Tabla1[MATRICULA],B10) -> 0 | BL5: =SUMIFS(Tabla1[€/GASOIL],Tabla1[13/06/2018],">=01/01/2018",Tabla1[13/06/2018],"<=31/01/2018",Tabla1[DESCRIPCIÓN DEL SERVICIO],"Repostar GASOIL / TALLER",Tabla1[MATRICULA],B10) -> 0 | BM5: =SUMIFS(Tabla1[€/GASOIL],Tabla1[13/06/2018],">=01/01/2018",Tabla1[13/06/2018],"<=31/01/2018",Tabla1[DESCRIPCIÓN DEL SERVICIO],"Repostar GASOIL / Externo",Tabla1[MATRICULA],B10) -> 0 | BO5: Enero | BP5: =SUMIFS(Tabla1[€/SERVICIO],Tabla1[13/06/2018],">=01/01/2018",Tabla1[13/06/2018],"<=31/01/2018",Tabla1[MATRICULA],B11) -> 0 | BQ5: =SUMIFS(Tabla1[€/GASOIL],Tabla1[13/06/2018],">=01/01/2018",Tabla1[13/06/2018],"<=31/01/2018",Tabla1[DESCRIPCIÓN DEL SERVICIO],"Repostar GASOIL / TALLER",Tabla1[MATRICULA],B11) -> 0 | BR5: =SUMIFS(Tabla1[€/GASOIL],Tabla1[13/06/2018],">=01/01/2018",Tabla1[13/06/2018],"<=31/01/2018",Tabla1[DESCRIPCIÓN DEL SERVICIO],"Repostar GASOIL / Externo",Tabla1[MATRICULA],B11) -> 0 | BT5: Enero | BU5: =SUMIFS(Tabla1[€/SERVICIO],Tabla1[13/06/2018],">=01/01/2018",Tabla1[13/06/2018],"<=31/01/2018",Tabla1[MATRICULA],B12) -> 0 | BV5: =SUMIFS(Tabla1[€/GASOIL],Tabla1[13/06/2018],">=01/01/2018",Tabla1[13/06/2018],"<=31/01/2018",Tabla1[DESCRIPCIÓN DEL SERVICIO],"Repostar GASOIL / TALLER",Tabla1[MATRICULA],B12) -> 0 | BW5: =SUMIFS(Tabla1[€/GASOIL],Tabla1[13/06/2018],">=01/01/2018",Tabla1[13/06/2018],"<=31/01/2018",Tabla1[DESCRIPCIÓN DEL SERVICIO],"Repostar GASOIL / Externo",Tabla1[MATRICULA],B12) -> 0 | BY5: Enero | BZ5: =SUMIFS(Tabla1[€/SERVICIO],Tabla1[13/06/2018],">=01/01/2018",Tabla1[13/06/2018],"<=31/01/2018",Tabla1[MATRICULA],B13) -> 0 | CA5: =SUMIFS(Tabla1[€/GASOIL],Tabla1[13/06/2018],">=01/01/2018",Tabla1[13/06/2018],"<=31/01/2018",Tabla1[DESCRIPCIÓN DEL SERVICIO],"Repostar GASOIL / TALLER",Tabla1[MATRICULA],B13) -> 0 | CB5: =SUMIFS(Tabla1[€/GASOIL],Tabla1[13/06/2018],">=01/01/2018",Tabla1[13/06/2018],"<=31/01/2018",Tabla1[DESCRIPCIÓN DEL SERVICIO],"Repostar GASOIL / Externo",Tabla1[MATRICULA],B13) -> 0
A6: ='DATOS PARA LISTAS DE MENU'!B5 -> FURGONETA | B6: ='DATOS PARA LISTAS DE MENU'!C5 -> 8343 HLJ | C6: ='DATOS PARA LISTAS DE MENU'!A5 -> T2 | E6: =SUMIF(Tabla1[MATRICULA],B6,Tabla1[€/SERVICIO]) -> 0 | G6: =SUMIFS(Tabla1[€/GASOIL],Tabla1[MATRICULA],B6,Tabla1[DESCRIPCIÓN DEL SERVICIO],"Repostar GASOIL / TALLER") -> 71.28 | I6: =SUMIFS(Tabla1[€/GASOIL],Tabla1[MATRICULA],B6,Tabla1[DESCRIPCIÓN DEL SERVICIO],"Repostar GASOIL / Externo") -> 0 | M6: Mantenimiento | N6: Gasoil Taller | O6: Gasoil Externo | Q6: Mantenimiento | R6: Gasoil Taller | S6: Gasoil Externo | U6: Mantenimiento | V6: Gasoil Taller | W6: Gasoil Externo | Y6: Mantenimiento | Z6: Gasoil Taller | AA6: Gasoil Externo | AC6: Mantenimiento | AD6: Gasoil Taller | AE6: Gasoil Externo | AG6: Mantenimiento | AH6: Gasoil Taller | AI6: Gasoil Externo | AK6: Febrero | AL6: =SUMIFS(Tabla1[€/SERVICIO],Tabla1[13/06/2018],">=01/02/2018",Tabla1[13/06/2018],"<=28/02/2018",Tabla1[MATRICULA],B5) -> 0 | AM6: =SUMIFS(Tabla1[€/GASOIL],Tabla1[13/06/2018],">=01/02/2018",Tabla1[13/06/2018],"<=28/02/2018",Tabla1[DESCRIPCIÓN DEL SERVICIO],"Repostar GASOIL / TALLER",Tabla1[MATRICULA],B5) -> 0 | AN6: =SUMIFS(Tabla1[€/GASOIL],Tabla1[13/06/2018],">=01/02/2018",Tabla1[13/06/2018],"<=28/02/2018",Tabla1[DESCRIPCIÓN DEL SERVICIO],"Repostar GASOIL / Externo",Tabla1[MATRICULA],B5) -> 0 | AP6: Febrero | AQ6: =SUMIFS(Tabla1[€/SERVICIO],Tabla1[13/06/2018],">=01/02/2018",Tabla1[13/06/2018],"<=28/02/2018",Tabla1[MATRICULA],B6) -> 0 | AR6: =SUMIFS(Tabla1[€/GASOIL],Tabla1[13/06/2018],">=01/02/2018",Tabla1[13/06/2018],"<=28/02/2018",Tabla1[DESCRIPCIÓN DEL SERVICIO],"Repostar GASOIL / TALLER",Tabla1[MATRICULA],B6) -> 0 | AS6: =SUMIFS(Tabla1[€/GASOIL],Tabla1[13/06/2018],">=01/02/2018",Tabla1[13/06/2018],"<=28/02/2018",Tabla1[DESCRIPCIÓN DEL SERVICIO],"Repostar GASOIL / Externo",Tabla1[MATRICULA],B6) -> 0 | AU6: Febrero | AV6: =SUMIFS(Tabla1[€/SERVICIO],Tabla1[13/06/2018],">=01/02/2018",Tabla1[13/06/2018],"<=28/02/2018",Tabla1[MATRICULA],B7) -> 0 | AW6: =SUMIFS(Tabla1[€/GASOIL],Tabla1[13/06/2018],">=01/02/2018",Tabla1[13/06/2018],"<=28/02/2018",Tabla1[DESCRIPCIÓN DEL SERVICIO],"Repostar GASOIL / TALLER",Tabla1[MATRICULA],B7) -> 0 | AX6: =SUMIFS(Tabla1[€/GASOIL],Tabla1[13/06/2018],">=01/02/2018",Tabla1[13/06/2018],"<=28/02/2018",Tabla1[DESCRIPCIÓN DEL SERVICIO],"Repostar GASOIL / Externo",Tabla1[MATRICULA],B7) -> 0 | AZ6: Febrero | BA6: =SUMIFS(Tabla1[€/SERVICIO],Tabla1[13/06/2018],">=01/02/2018",Tabla1[13/06/2018],"<=28/02/2018",Tabla1[MATRICULA],B8) -> 0 | BB6: =SUMIFS(Tabla1[€/GASOIL],Tabla1[13/06/2018],">=01/02/2018",Tabla1[13/06/2018],"<=28/02/2018",Tabla1[DESCRIPCIÓN DEL SERVICIO],"Repostar GASOIL / TALLER",Tabla1[MATRICULA],B8) -> 0 | BC6: =SUMIFS(Tabla1[€/GASOIL],Tabla1[13/06/2018],">=01/02/2018",Tabla1[13/06/2018],"<=28/02/2018",Tabla1[DESCRIPCIÓN DEL SERVICIO],"Repostar GASOIL / Externo",Tabla1[MATRICULA],B8) -> 51 | BE6: Febrero | BF6: =SUMIFS(Tabla1[€/SERVICIO],Tabla1[13/06/2018],">=01/02/2018",Tabla1[13/06/2018],"<=28/02/2018",Tabla1[MATRICULA],B9) -> 0 | BG6: =SUMIFS(Tabla1[€/GASOIL],Tabla1[13/06/2018],">=01/02/2018",Tabla1[13/06/2018],"<=28/02/2018",Tabla1[DESCRIPCIÓN DEL SERVICIO],"Repostar GASOIL / TALLER",Tabla1[MATRICULA],B9) -> 0 | BH6: =SUMIFS(Tabla1[€/GASOIL],Tabla1[13/06/2018],">=01/02/2018",Tabla1[13/06/2018],"<=28/02/2018",Tabla1[DESCRIPCIÓN DEL SERVICIO],"Repostar GASOIL / Externo",Tabla1[MATRICULA],B9) -> 0 | BJ6: Febrero | BK6: =SUMIFS(Tabla1[€/SERVICIO],Tabla1[13/06/2018],">=01/02/2018",Tabla1[13/06/2018],"<=28/02/2018",Tabla1[MATRICULA],B10) -> 0 | BL6: =SUMIFS(Tabla1[€/GASOIL],Tabla1[13/06/2018],">=01/02/2018",Tabla1[13/06/2018],"<=28/02/2018",Tabla1[DESCRIPCIÓN DEL SERVICIO],"Repostar GASOIL / TALLER",Tabla1[MATRICULA],B10) -> 0 | BM6: =SUMIFS(Tabla1[€/GASOIL],Tabla1[13/06/2018],">=01/02/2018",Tabla1[13/06/2018],"<=28/02/2018",Tabla1[DESCRIPCIÓN DEL SERVICIO],"Repostar GASOIL / Externo",Tabla1[MATRICULA],B10) -> 25 | BO6: Febrero | BP6: =SUMIFS(Tabla1[€/SERVICIO],Tabla1[13/06/2018],">=01/02/2018",Tabla1[13/06/2018],"<=28/02/2018",Tabla1[MATRICULA],B11) -> 0 | BQ6: =SUMIFS(Tabla1[€/GASOIL],Tabla1[13/06/2018],">=01/02/2018",Tabla1[13/06/2018],"<=28/02/2018",Tabla1[DESCRIPCIÓN DEL SERVICIO],"Repostar GASOIL / TALLER",Tabla1[MATRICULA],B11) -> 0 | BR6: =SUMIFS(Tabla1[€/GASOIL],Tabla1[13/06/2018],">=01/02/2018",Tabla1[13/06/2018],"<=28/02/2018",Tabla1[DESCRIPCIÓN DEL SERVICIO],"Repostar GASOIL / Externo",Tabla1[MATRICULA],B11) -> 0 | BT6: Febrero | BU6: =SUMIFS(Tabla1[€/SERVICIO],Tabla1[13/06/2018],">=01/02/2018",Tabla1[13/06/2018],"<=28/02/2018",Tabla1[MATRICULA],B12) -> 0 | BV6: =SUMIFS(Tabla1[€/GASOIL],Tabla1[13/06/2018],">=01/02/2018",Tabla1[13/06/2018],"<=28/02/2018",Tabla1[DESCRIPCIÓN DEL SERVICIO],"Repostar GASOIL / TALLER",Tabla1[MATRICULA],B12) -> 0 | BW6: =SUMIFS(Tabla1[€/GASOIL],Tabla1[13/06/2018],">=01/02/2018",Tabla1[13/06/2018],"<=28/02/2018",Tabla1[DESCRIPCIÓN DEL SERVICIO],"Repostar GASOIL / Externo",Tabla1[MATRICULA],B12) -> 0 | BY6: Febrero | BZ6: =SUMIFS(Tabla1[€/SERVICIO],Tabla1[13/06/2018],">=01/02/2018",Tabla1[13/06/2018],"<=28/02/2018",Tabla1[MATRICULA],B13) -> 0 | CA6: =SUMIFS(Tabla1[€/GASOIL],Tabla1[13/06/2018],">=01/02/2018",Tabla1[13/06/2018],"<=28/02/2018",Tabla1[DESCRIPCIÓN DEL SERVICIO],"Repostar GASOIL / TALLER",Tabla1[MATRICULA],B13) -> 0 | CB6: =SUMIFS(Tabla1[€/GASOIL],Tabla1[13/06/2018],">=01/02/2018",Tabla1[13/06/2018],"<=28/02/2018",Tabla1[DESCRIPCIÓN DEL SERVICIO],"Repostar GASOIL / Externo",Tabla1[MATRICULA],B13) -> 0
A7: ='DATOS PARA LISTAS DE MENU'!B6 -> FURGONETA | B7: ='DATOS PARA LISTAS DE MENU'!C6 -> 5485 DFJ | C7: ='DATOS PARA LISTAS DE MENU'!A6 -> T3 | E7: =SUMIF(Tabla1[MATRICULA],B7,Tabla1[€/SERVICIO]) -> 0 | G7: =SUMIFS(Tabla1[€/GASOIL],Tabla1[MATRICULA],B7,Tabla1[DESCRIPCIÓN DEL SERVICIO],"Repostar GASOIL / TALLER") -> 0 | I7: =SUMIFS(Tabla1[€/GASOIL],Tabla1[MATRICULA],B7,Tabla1[DESCRIPCIÓN DEL SERVICIO],"Repostar GASOIL / Externo") -> 0 | M7: =SUMIFS(Tabla1[€/SERVICIO],Tabla1[13/06/2018],">=01/01/2018",Tabla1[13/06/2018],"<=31/01/2018") -> 421.89 | N7: =SUMIFS(Tabla1[€/GASOIL],Tabla1[13/06/2018],">=01/01/2018",Tabla1[13/06/2018],"<=31/01/2018",Tabla1[DESCRIPCIÓN DEL SERVICIO],"Repostar GASOIL / TALLER") -> 0 | O7: =SUMIFS(Tabla1[€/GASOIL],Tabla1[13/06/2018],">=01/01/2018",Tabla1[13/06/2018],"<=31/01/2018",Tabla1[DESCRIPCIÓN DEL SERVICIO],"Repostar GASOIL / Externo") -> 34 | Q7: =SUMIFS(Tabla1[€/SERVICIO],Tabla1[13/06/2018],">=01/03/2018",Tabla1[13/06/2018],"<=31/03/2018") -> 0 | R7: =SUMIFS(Tabla1[€/GASOIL],Tabla1[13/06/2018],">=01/03/2018",Tabla1[13/06/2018],"<=31/03/2018",Tabla1[DESCRIPCIÓN DEL SERVICIO],"Repostar GASOIL / TALLER") -> 0 | S7: =SUMIFS(Tabla1[€/GASOIL],Tabla1[13/06/2018],">=01/03/2018",Tabla1[13/06/2018],"<=31/03/2018",Tabla1[DESCRIPCIÓN DEL SERVICIO],"Repostar GASOIL / Externo") -> 121 | U7: =SUMIFS(Tabla1[€/SERVICIO],Tabla1[13/06/2018],">=01/05/2018",Tabla1[13/06/2018],"<=31/05/2018") -> 752.24 | V7: =SUMIFS(Tabla1[€/GASOIL],Tabla1[13/06/2018],">=01/05/2018",Tabla1[13/06/2018],"<=31/05/2018",Tabla1[DESCRIPCIÓN DEL SERVICIO],"Repostar GASOIL / TALLER") -> 0 | W7: =SUMIFS(Tabla1[€/GASOIL],Tabla1[13/06/2018],">=01/05/2018",Tabla1[13/06/2018],"<=31/05/2018",Tabla1[DESCRIPCIÓN DEL SERVICIO],"Repostar GASOIL / Externo") -> 151 | Y7: =SUMIFS(Tabla1[€/SERVICIO],Tabla1[13/06/2018],">=01/07/2018",Tabla1[13/06/2018],"<=31/07/2018") -> 0 | Z7: =SUMIFS(Tabla1[€/GASOIL],Tabla1[13/06/2018],">=01/07/2018",Tabla1[13/06/2018],"<=31/07/2018",Tabla1[DESCRIPCIÓN DEL SERVICIO],"Repostar GASOIL / TALLER") -> 0 | AA7: =SUMIFS(Tabla1[€/GASOIL],Tabla1[13/06/2018],">=01/07/2018",Tabla1[13/06/2018],"<=31/07/2018",Tabla1[DESCRIPCIÓN DEL SERVICIO],"Repostar GASOIL / Externo") -> 0 | AC7: =SUMIFS(Tabla1[€/SERVICIO],Tabla1[13/06/2018],">=01/09/2018",Tabla1[13/06/2018],"<=30/09/2018") -> 0 | AD7: =SUMIFS(Tabla1[€/GASOIL],Tabla1[13/06/2018],">=01/09/2018",Tabla1[13/06/2018],"<=30/09/2018",Tabla1[DESCRIPCIÓN DEL SERVICIO],"Repostar GASOIL / TALLER") -> 0 | AE7: =SUMIFS(Tabla1[€/GASOIL],Tabla1[13/06/2018],">=01/09/2018",Tabla1[13/06/2018],"<=30/09/2018",Tabla1[DESCRIPCIÓN DEL SERVICIO],"Repostar GASOIL / Externo") -> 0 | AG7: =SUMIFS(Tabla1[€/SERVICIO],Tabla1[13/06/2018],">=01/11/2018",Tabla1[13/06/2018],"<=30/11/2018") -> 0 | AH7: =SUMIFS(Tabla1[€/GASOIL],Tabla1[13/06/2018],">=01/11/2018",Tabla1[13/06/2018],"<=30/11/2018",Tabla1[DESCRIPCIÓN DEL SERVICIO],"Repostar GASOIL / TALLER") -> 0 | AI7: =SUMIFS(Tabla1[€/GASOIL],Tabla1[13/06/2018],">=01/11/2018",Tabla1[13/06/2018],"<=30/11/2018",Tabla1[DESCRIPCIÓN DEL SERVICIO],"Repostar GASOIL / Externo") -> 0 | AK7: Marzo | AL7: =SUMIFS(Tabla1[€/SERVICIO],Tabla1[13/06/2018],">=01/03/2018",Tabla1[13/06/2018],"<=31/03/2018",Tabla1[MATRICULA],B5) -> 0 | AM7: =SUMIFS(Tabla1[€/GASOIL],Tabla1[13/06/2018],">=01/03/2018",Tabla1[13/06/2018],"<=30/03/2018",Tabla1[DESCRIPCIÓN DEL SERVICIO],"Repostar GASOIL / TALLER",Tabla1[MATRICULA],B5) -> 0 | AN7: =SUMIFS(Tabla1[€/GASOIL],Tabla1[13/06/2018],">=01/03/2018",Tabla1[13/06/2018],"<=30/03/2018",Tabla1[DESCRIPCIÓN DEL SERVICIO],"Repostar GASOIL / Externo",Tabla1[MATRICULA],B5) -> 0 | AP7: Marzo | AQ7: =SUMIFS(Tabla1[€/SERVICIO],Tabla1[13/06/2018],">=01/03/2018",Tabla1[13/06/2018],"<=31/03/2018",Tabla1[MATRICULA],B6) -> 0 | AR7: =SUMIFS(Tabla1[€/GASOIL],Tabla1[13/06/2018],">=01/03/2018",Tabla1[13/06/2018],"<=30/03/2018",Tabla1[DESCRIPCIÓN DEL SERVICIO],"Repostar GASOIL / TALLER",Tabla1[MATRICULA],B6) -> 0 | AS7: =SUMIFS(Tabla1[€/GASOIL],Tabla1[13/06/2018],">=01/03/2018",Tabla1[13/06/2018],"<=30/03/2018",Tabla1[DESCRIPCIÓN DEL SERVICIO],"Repostar GASOIL / Externo",Tabla1[MATRICULA],B6) -> 0 | AU7: Marzo | AV7: =SUMIFS(Tabla1[€/SERVICIO],Tabla1[13/06/2018],">=01/03/2018",Tabla1[13/06/2018],"<=31/03/2018",Tabla1[MATRICULA],B7) -> 0 | AW7: =SUMIFS(Tabla1[€/GASOIL],Tabla1[13/06/2018],">=01/03/2018",Tabla1[13/06/2018],"<=30/03/2018",Tabla1[DESCRIPCIÓN DEL SERVICIO],"Repostar GASOIL / TALLER",Tabla1[MATRICULA],B7) -> 0 | AX7: =SUMIFS(Tabla1[€/GASOIL],Tabla1[13/06/2018],">=01/03/2018",Tabla1[13/06/2018],"<=30/03/2018",Tabla1[DESCRIPCIÓN DEL SERVICIO],"Repostar GASOIL / Externo",Tabla1[MATRICULA],B7) -> 0 | AZ7: Marzo | BA7: =SUMIFS(Tabla1[€/SERVICIO],Tabla1[13/06/2018],">=01/03/2018",Tabla1[13/06/2018],"<=31/03/2018",Tabla1[MATRICULA],B8) -> 0 | BB7: =SUMIFS(Tabla1[€/GASOIL],Tabla1[13/06/2018],">=01/03/2018",Tabla1[13/06/2018],"<=30/03/2018",Tabla1[DESCRIPCIÓN DEL SERVICIO],"Repostar GASOIL / TALLER",Tabla1[MATRICULA],B8) -> 0 | BC7: =SUMIFS(Tabla1[€/GASOIL],Tabla1[13/06/2018],">=01/03/2018",Tabla1[13/06/2018],"<=30/03/2018",Tabla1[DESCRIPCIÓN DEL SERVICIO],"Repostar GASOIL / Externo",Tabla1[MATRICULA],B8) -> 121 | BE7: Marzo | BF7: =SUMIFS(Tabla1[€/SERVICIO],Tabla1[13/06/2018],">=01/03/2018",Tabla1[13/06/2018],"<=31/03/2018",Tabla1[MATRICULA],B9) -> 0 | BG7: =SUMIFS(Tabla1[€/GASOIL],Tabla1[13/06/2018],">=01/03/2018",Tabla1[13/06/2018],"<=30/03/2018",Tabla1[DESCRIPCIÓN DEL SERVICIO],"Repostar GASOIL / TALLER",Tabla1[MATRICULA],B9) -> 0 | BH7: =SUMIFS(Tabla1[€/GASOIL],Tabla1[13/06/2018],">=01/03/2018",Tabla1[13/06/2018],"<=30/03/2018",Tabla1[DESCRIPCIÓN DEL SERVICIO],"Repostar GASOIL / Externo",Tabla1[MATRICULA],B9) -> 0 | BJ7: Marzo | BK7: =SUMIFS(Tabla1[€/SERVICIO],Tabla1[13/06/2018],">=01/03/2018",Tabla1[13/06/2018],"<=31/03/2018",Tabla1[MATRICULA],B10) -> 0 | BL7: =SUMIFS(Tabla1[€/GASOIL],Tabla1[13/06/2018],">=01/03/2018",Tabla1[13/06/2018],"<=30/03/2018",Tabla1[DESCRIPCIÓN DEL SERVICIO],"Repostar GASOIL / TALLER",Tabla1[MATRICULA],B10) -> 0 | BM7: =SUMIFS(Tabla1[€/GASOIL],Tabla1[13/06/2018],">=01/03/2018",Tabla1[13/06/2018],"<=30/03/2018",Tabla1[DESCRIPCIÓN DEL SERVICIO],"Repostar GASOIL / Externo",Tabla1[MATRICULA],B10) -> 0 | BO7: Marzo | BP7: =SUMIFS(Tabla1[€/SERVICIO],Tabla1[13/06/2018],">=01/03/2018",Tabla1[13/06/2018],"<=31/03/2018",Tabla1[MATRICULA],B11) -> 0 | BQ7: =SUMIFS(Tabla1[€/GASOIL],Tabla1[13/06/2018],">=01/03/2018",Tabla1[13/06/2018],"<=30/03/2018",Tabla1[DESCRIPCIÓN DEL SERVICIO],"Repostar GASOIL / TALLER",Tabla1[MATRICULA],B11) -> 0 | BR7: =SUMIFS(Tabla1[€/GASOIL],Tabla1[13/06/2018],">=01/03/2018",Tabla1[13/06/2018],"<=30/03/2018",Tabla1[DESCRIPCIÓN DEL SERVICIO],"Repostar GASOIL / Externo",Tabla1[MATRICULA],B11) -> 0 | BT7: Marzo | BU7: =SUMIFS(Tabla1[€/SERVICIO],Tabla1[13/06/2018],">=01/03/2018",Tabla1[13/06/2018],"<=31/03/2018",Tabla1[MATRICULA],B12) -> 0 | BV7: =SUMIFS(Tabla1[€/GASOIL],Tabla1[13/06/2018],">=01/03/2018",Tabla1[13/06/2018],"<=30/03/2018",Tabla1[DESCRIPCIÓN DEL SERVICIO],"Repostar GASOIL / TALLER",Tabla1[MATRICULA],B12) -> 0 | BW7: =SUMIFS(Tabla1[€/GASOIL],Tabla1[13/06/2018],">=01/03/2018",Tabla1[13/06/2018],"<=30/03/2018",Tabla1[DESCRIPCIÓN DEL SERVICIO],"Repostar GASOIL / Externo",Tabla1[MATRICULA],B12) -> 0 | BY7: Marzo | BZ7: =SUMIFS(Tabla1[€/SERVICIO],Tabla1[13/06/2018],">=01/03/2018",Tabla1[13/06/2018],"<=31/03/2018",Tabla1[MATRICULA],B13) -> 0 | CA7: =SUMIFS(Tabla1[€/GASOIL],Tabla1[13/06/2018],">=01/03/2018",Tabla1[13/06/2018],"<=30/03/2018",Tabla1[DESCRIPCIÓN DEL SERVICIO],"Repostar GASOIL / TALLER",Tabla1[MATRICULA],B13) -> 0 | CB7: =SUMIFS(Tabla1[€/GASOIL],Tabla1[13/06/2018],">=01/03/2018",Tabla1[13/06/2018],"<=30/03/2018",Tabla1[DESCRIPCIÓN DEL SERVICIO],"Repostar GASOIL / Externo",Tabla1[MATRICULA],B13) -> 0
A8: ='DATOS PARA LISTAS DE MENU'!B7 -> COCHE ROJO | B8: ='DATOS PARA LISTAS DE MENU'!C7 -> 8661 FPY | C8: ='DATOS PARA LISTAS DE MENU'!A7 -> T4 | E8: =SUMIF(Tabla1[MATRICULA],B8,Tabla1[€/SERVICIO]) -> 1174.13 | G8: =SUMIFS(Tabla1[€/GASOIL],Tabla1[MATRICULA],B8,Tabla1[DESCRIPCIÓN DEL SERVICIO],"Repostar GASOIL / TALLER") -> 0 | I8: =SUMIFS(Tabla1[€/GASOIL],Tabla1[MATRICULA],B8,Tabla1[DESCRIPCIÓN DEL SERVICIO],"Repostar GASOIL / Externo") -> 417 | AK8: Abril | AL8: =SUMIFS(Tabla1[€/SERVICIO],Tabla1[13/06/2018],">=01/04/2018",Tabla1[13/06/2018],"<=30/04/2018",Tabla1[MATRICULA],B5) -> 0 | AM8: =SUMIFS(Tabla1[€/GASOIL],Tabla1[13/06/2018],">=01/04/2018",Tabla1[13/06/2018],"<=30/04/2018",Tabla1[DESCRIPCIÓN DEL SERVICIO],"Repostar GASOIL / TALLER",Tabla1[MATRICULA],B5) -> 0 | AN8: =SUMIFS(Tabla1[€/GASOIL],Tabla1[13/06/2018],">=01/04/2018",Tabla1[13/06/2018],"<=30/04/2018",Tabla1[DESCRIPCIÓN DEL SERVICIO],"Repostar GASOIL / Externo",Tabla1[MATRICULA],B5) -> 0 | AP8: Abril | AQ8: =SUMIFS(Tabla1[€/SERVICIO],Tabla1[13/06/2018],">=01/04/2018",Tabla1[13/06/2018],"<=30/04/2018",Tabla1[MATRICULA],B6) -> 0 | AR8: =SUMIFS(Tabla1[€/GASOIL],Tabla1[13/06/2018],">=01/04/2018",Tabla1[13/06/2018],"<=30/04/2018",Tabla1[DESCRIPCIÓN DEL SERVICIO],"Repostar GASOIL / TALLER",Tabla1[MATRICULA],B6) -> 0 | AS8: =SUMIFS(Tabla1[€/GASOIL],Tabla1[13/06/2018],">=01/04/2018",Tabla1[13/06/2018],"<=30/04/2018",Tabla1[DESCRIPCIÓN DEL SERVICIO],"Repostar GASOIL / Externo",Tabla1[MATRICULA],B6) -> 0 | AU8: Abril | AV8: =SUMIFS(Tabla1[€/SERVICIO],Tabla1[13/06/2018],">=01/04/2018",Tabla1[13/06/2018],"<=30/04/2018",Tabla1[MATRICULA],B7) -> 0 | AW8: =SUMIFS(Tabla1[€/GASOIL],Tabla1[13/06/2018],">=01/04/2018",Tabla1[13/06/2018],"<=30/04/2018",Tabla1[DESCRIPCIÓN DEL SERVICIO],"Repostar GASOIL / TALLER",Tabla1[MATRICULA],B7) -> 0 | AX8: =SUMIFS(Tabla1[€/GASOIL],Tabla1[13/06/2018],">=01/04/2018",Tabla1[13/06/2018],"<=30/04/2018",Tabla1[DESCRIPCIÓN DEL SERVICIO],"Repostar GASOIL / Externo",Tabla1[MATRICULA],B7) -> 0 | AZ8: Abril | BA8: =SUMIFS(Tabla1[€/SERVICIO],Tabla1[13/06/2018],">=01/04/2018",Tabla1[13/06/2018],"<=30/04/2018",Tabla1[MATRICULA],B8) -> 0 | BB8: =SUMIFS(Tabla1[€/GASOIL],Tabla1[13/06/2018],">=01/04/2018",Tabla1[13/06/2018],"<=30/04/2018",Tabla1[DESCRIPCIÓN DEL SERVICIO],"Repostar GASOIL / TALLER",Tabla1[MATRICULA],B8) -> 0 | BC8: =SUMIFS(Tabla1[€/GASOIL],Tabla1[13/06/2018],">=01/04/2018",Tabla1[13/06/2018],"<=30/04/2018",Tabla1[DESCRIPCIÓN DEL SERVICIO],"Repostar GASOIL / Externo",Tabla1[MATRICULA],B8) -> 60 | BE8: Abril | BF8: =SUMIFS(Tabla1[€/SERVICIO],Tabla1[13/06/2018],">=01/04/2018",Tabla1[13/06/2018],"<=30/04/2018",Tabla1[MATRICULA],B9) -> 0 | BG8: =SUMIFS(Tabla1[€/GASOIL],Tabla1[13/06/2018],">=01/04/2018",Tabla1[13/06/2018],"<=30/04/2018",Tabla1[DESCRIPCIÓN DEL SERVICIO],"Repostar GASOIL / TALLER",Tabla1[MATRICULA],B9) -> 0 | BH8: =SUMIFS(Tabla1[€/GASOIL],Tabla1[13/06/2018],">=01/04/2018",Tabla1[13/06/2018],"<=30/04/2018",Tabla1[DESCRIPCIÓN DEL SERVICIO],"Repostar GASOIL / Externo",Tabla1[MATRICULA],B9) -> 0 | BJ8: Abril | BK8: =SUMIFS(Tabla1[€/SERVICIO],Tabla1[13/06/2018],">=01/04/2018",Tabla1[13/06/2018],"<=30/04/2018",Tabla1[MATRICULA],B10) -> 0 | BL8: =SUMIFS(Tabla1[€/GASOIL],Tabla1[13/06/2018],">=01/04/2018",Tabla1[13/06/2018],"<=30/04/2018",Tabla1[DESCRIPCIÓN DEL SERVICIO],"Repostar GASOIL / TALLER",Tabla1[MATRICULA],B10) -> 0 | BM8: =SUMIFS(Tabla1[€/GASOIL],Tabla1[13/06/2018],">=01/04/2018",Tabla1[13/06/2018],"<=30/04/2018",Tabla1[DESCRIPCIÓN DEL SERVICIO],"Repostar GASOIL / Externo",Tabla1[MATRICULA],B10) -> 0 | BO8: Abril | BP8: =SUMIFS(Tabla1[€/SERVICIO],Tabla1[13/06/2018],">=01/04/2018",Tabla1[13/06/2018],"<=30/04/2018",Tabla1[MATRICULA],B11) -> 0 | BQ8: =SUMIFS(Tabla1[€/GASOIL],Tabla1[13/06/2018],">=01/04/2018",Tabla1[13/06/2018],"<=30/04/2018",Tabla1[DESCRIPCIÓN DEL SERVICIO],"Repostar GASOIL / TALLER",Tabla1[MATRICULA],B11) -> 0 | BR8: =SUMIFS(Tabla1[€/GASOIL],Tabla1[13/06/2018],">=01/04/2018",Tabla1[13/06/2018],"<=30/04/2018",Tabla1[DESCRIPCIÓN DEL SERVICIO],"Repostar GASOIL / Externo",Tabla1[MATRICULA],B11) -> 0 | BT8: Abril | BU8: =SUMIFS(Tabla1[€/SERVICIO],Tabla1[13/06/2018],">=01/04/2018",Tabla1[13/06/2018],"<=30/04/2018",Tabla1[MATRICULA],B12) -> 0 | BV8: =SUMIFS(Tabla1[€/GASOIL],Tabla1[13/06/2018],">=01/04/2018",Tabla1[13/06/2018],"<=30/04/2018",Tabla1[DESCRIPCIÓN DEL SERVICIO],"Repostar GASOIL / TALLER",Tabla1[MATRICULA],B12) -> 0 | BW8: =SUMIFS(Tabla1[€/GASOIL],Tabla1[13/06/2018],">=01/04/2018",Tabla1[13/06/2018],"<=30/04/2018",Tabla1[DESCRIPCIÓN DEL SERVICIO],"Repostar GASOIL / Externo",Tabla1[MATRICULA],B12) -> 0 | BY8: Abril | BZ8: =SUMIFS(Tabla1[€/SERVICIO],Tabla1[13/06/2018],">=01/04/2018",Tabla1[13/06/2018],"<=30/04/2018",Tabla1[MATRICULA],B13) -> 0 | CA8: =SUMIFS(Tabla1[€/GASOIL],Tabla1[13/06/2018],">=01/04/2018",Tabla1[13/06/2018],"<=30/04/2018",Tabla1[DESCRIPCIÓN DEL SERVICIO],"Repostar GASOIL / TALLER",Tabla1[MATRICULA],B13) -> 0 | CB8: =SUMIFS(Tabla1[€/GASOIL],Tabla1[13/06/2018],">=01/04/2018",Tabla1[13/06/2018],"<=30/04/2018",Tabla1[DESCRIPCIÓN DEL SERVICIO],"Repostar GASOIL / Externo",Tabla1[MATRICULA],B13) -> 0
A9: ='DATOS PARA LISTAS DE MENU'!B8 -> MERCEDES | B9: ='DATOS PARA LISTAS DE MENU'!C8 -> 5343 HZY | C9: ='DATOS PARA LISTAS DE MENU'!A8 -> T1 | E9: =SUMIF(Tabla1[MATRICULA],B9,Tabla1[€/SERVICIO]) -> 0 | G9: =SUMIFS(Tabla1[€/GASOIL],Tabla1[MATRICULA],B9,Tabla1[DESCRIPCIÓN DEL SERVICIO],"Repostar GASOIL / TALLER") -> 42.12 | I9: =SUMIFS(Tabla1[€/GASOIL],Tabla1[MATRICULA],B9,Tabla1[DESCRIPCIÓN DEL SERVICIO],"Repostar GASOIL / Externo") -> 0 | AK9: Mayo | AL9: =SUMIFS(Tabla1[€/SERVICIO],Tabla1[13/06/2018],">=01/05/2018",Tabla1[13/06/2018],"<=31/05/2018",Tabla1[MATRICULA],B5) -> 0 | AM9: =SUMIFS(Tabla1[€/GASOIL],Tabla1[13/06/2018],">=01/05/2018",Tabla1[13/06/2018],"<=31/05/2018",Tabla1[DESCRIPCIÓN DEL SERVICIO],"Repostar GASOIL / TALLER",Tabla1[MATRICULA],B5) -> 0 | AN9: =SUMIFS(Tabla1[€/GASOIL],Tabla1[13/06/2018],">=01/05/2018",Tabla1[13/06/2018],"<=31/05/2018",Tabla1[DESCRIPCIÓN DEL SERVICIO],"Repostar GASOIL / Externo",Tabla1[MATRICULA],B5) -> 0 | AP9: Mayo | AQ9: =SUMIFS(Tabla1[€/SERVICIO],Tabla1[13/06/2018],">=01/05/2018",Tabla1[13/06/2018],"<=31/05/2018",Tabla1[MATRICULA],B6) -> 0 | AR9: =SUMIFS(Tabla1[€/GASOIL],Tabla1[13/06/2018],">=01/05/2018",Tabla1[13/06/2018],"<=31/05/2018",Tabla1[DESCRIPCIÓN DEL SERVICIO],"Repostar GASOIL / TALLER",Tabla1[MATRICULA],B6) -> 0 | AS9: =SUMIFS(Tabla1[€/GASOIL],Tabla1[13/06/2018],">=01/05/2018",Tabla1[13/06/2018],"<=31/05/2018",Tabla1[DESCRIPCIÓN DEL SERVICIO],"Repostar GASOIL / Externo",Tabla1[MATRICULA],B6) -> 0 | AU9: Mayo | AV9: =SUMIFS(Tabla1[€/SERVICIO],Tabla1[13/06/2018],">=01/05/2018",Tabla1[13/06/2018],"<=31/05/2018",Tabla1[MATRICULA],B7) -> 0 | AW9: =SUMIFS(Tabla1[€/GASOIL],Tabla1[13/06/2018],">=01/05/2018",Tabla1[13/06/2018],"<=31/05/2018",Tabla1[DESCRIPCIÓN DEL SERVICIO],"Repostar GASOIL / TALLER",Tabla1[MATRICULA],B7) -> 0 | AX9: =SUMIFS(Tabla1[€/GASOIL],Tabla1[13/06/2018],">=01/05/2018",Tabla1[13/06/2018],"<=31/05/2018",Tabla1[DESCRIPCIÓN DEL SERVICIO],"Repostar GASOIL / Externo",Tabla1[MATRICULA],B7) -> 0 | AZ9: Mayo | BA9: =SUMIFS(Tabla1[€/SERVICIO],Tabla1[13/06/2018],">=01/05/2018",Tabla1[13/06/2018],"<=31/05/2018",Tabla1[MATRICULA],B8) -> 752.24 | BB9: =SUMIFS(Tabla1[€/GASOIL],Tabla1[13/06/2018],">=01/05/2018",Tabla1[13/06/2018],"<=31/05/2018",Tabla1[DESCRIPCIÓN DEL SERVICIO],"Repostar GASOIL / TALLER",Tabla1[MATRICULA],B8) -> 0 | BC9: =SUMIFS(Tabla1[€/GASOIL],Tabla1[13/06/2018],">=01/05/2018",Tabla1[13/06/2018],"<=31/05/2018",Tabla1[DESCRIPCIÓN DEL SERVICIO],"Repostar GASOIL / Externo",Tabla1[MATRICULA],B8) -> 151 | BE9: Mayo | BF9: =SUMIFS(Tabla1[€/SERVICIO],Tabla1[13/06/2018],">=01/05/2018",Tabla1[13/06/2018],"<=31/05/2018",Tabla1[MATRICULA],B9) -> 0 | BG9: =SUMIFS(Tabla1[€/GASOIL],Tabla1[13/06/2018],">=01/05/2018",Tabla1[13/06/2018],"<=31/05/2018",Tabla1[DESCRIPCIÓN DEL SERVICIO],"Repostar GASOIL / TALLER",Tabla1[MATRICULA],B9) -> 0 | BH9: =SUMIFS(Tabla1[€/GASOIL],Tabla1[13/06/2018],">=01/05/2018",Tabla1[13/06/2018],"<=31/05/2018",Tabla1[DESCRIPCIÓN DEL SERVICIO],"Repostar GASOIL / Externo",Tabla1[MATRICULA],B9) -> 0 | BJ9: Mayo | BK9: =SUMIFS(Tabla1[€/SERVICIO],Tabla1[13/06/2018],">=01/05/2018",Tabla1[13/06/2018],"<=31/05/2018",Tabla1[MATRICULA],B10) -> 0 | BL9: =SUMIFS(Tabla1[€/GASOIL],Tabla1[13/06/2018],">=01/05/2018",Tabla1[13/06/2018],"<=31/05/2018",Tabla1[DESCRIPCIÓN DEL SERVICIO],"Repostar GASOIL / TALLER",Tabla1[MATRICULA],B10) -> 0 | BM9: =SUMIFS(Tabla1[€/GASOIL],Tabla1[13/06/2018],">=01/05/2018",Tabla1[13/06/2018],"<=31/05/2018",Tabla1[DESCRIPCIÓN DEL SERVICIO],"Repostar GASOIL / Externo",Tabla1[MATRICULA],B10) -> 0 | BO9: Mayo | BP9: =SUMIFS(Tabla1[€/SERVICIO],Tabla1[13/06/2018],">=01/05/2018",Tabla1[13/06/2018],"<=31/05/2018",Tabla1[MATRICULA],B11) -> 0 | BQ9: =SUMIFS(Tabla1[€/GASOIL],Tabla1[13/06/2018],">=01/05/2018",Tabla1[13/06/2018],"<=31/05/2018",Tabla1[DESCRIPCIÓN DEL SERVICIO],"Repostar GASOIL / TALLER",Tabla1[MATRICULA],B11) -> 0 | BR9: =SUMIFS(Tabla1[€/GASOIL],Tabla1[13/06/2018],">=01/05/2018",Tabla1[13/06/2018],"<=31/05/2018",Tabla1[DESCRIPCIÓN DEL SERVICIO],"Repostar GASOIL / Externo",Tabla1[MATRICULA],B11) -> 0 | BT9: Mayo | BU9: =SUMIFS(Tabla1[€/SERVICIO],Tabla1[13/06/2018],">=01/05/2018",Tabla1[13/06/2018],"<=31/05/2018",Tabla1[MATRICULA],B12) -> 0 | BV9: =SUMIFS(Tabla1[€/GASOIL],Tabla1[13/06/2018],">=01/05/2018",Tabla1[13/06/2018],"<=31/05/2018",Tabla1[DESCRIPCIÓN DEL SERVICIO],"Repostar GASOIL / TALLER",Tabla1[MATRICULA],B12) -> 0 | BW9: =SUMIFS(Tabla1[€/GASOIL],Tabla1[13/06/2018],">=01/05/2018",Tabla1[13/06/2018],"<=31/05/2018",Tabla1[DESCRIPCIÓN DEL SERVICIO],"Repostar GASOIL / Externo",Tabla1[MATRICULA],B12) -> 0 | BY9: Mayo | BZ9: =SUMIFS(Tabla1[€/SERVICIO],Tabla1[13/06/2018],">=01/05/2018",Tabla1[13/06/2018],"<=31/05/2018",Tabla1[MATRICULA],B13) -> 0 | CA9: =SUMIFS(Tabla1[€/GASOIL],Tabla1[13/06/2018],">=01/05/2018",Tabla1[13/06/2018],"<=31/05/2018",Tabla1[DESCRIPCIÓN DEL SERVICIO],"Repostar GASOIL / TALLER",Tabla1[MATRICULA],B13) -> 0 | CB9: =SUMIFS(Tabla1[€/GASOIL],Tabla1[13/06/2018],">=01/05/2018",Tabla1[13/06/2018],"<=31/05/2018",Tabla1[DESCRIPCIÓN DEL SERVICIO],"Repostar GASOIL / Externo",Tabla1[MATRICULA],B13) -> 0
A10: ='DATOS PARA LISTAS DE MENU'!B9 -> COCHE BLANCO | B10: ='DATOS PARA LISTAS DE MENU'!C9 -> 8518 HYY | C10: ='DATOS PARA LISTAS DE MENU'!A9 -> T2 | E10: =SUMIF(Tabla1[MATRICULA],B10,Tabla1[€/SERVICIO]) -> 0 | G10: =SUMIFS(Tabla1[€/GASOIL],Tabla1[MATRICULA],B10,Tabla1[DESCRIPCIÓN DEL SERVICIO],"Repostar GASOIL / TALLER") -> 37.8 | I10: =SUMIFS(Tabla1[€/GASOIL],Tabla1[MATRICULA],B10,Tabla1[DESCRIPCIÓN DEL SERVICIO],"Repostar GASOIL / Externo") -> 61 | M10: Gasto FEBRERO | Q10: Gasto ABRIL | U10: Gasto JUNIO | Y10: Gasto AGOSTO | AC10: Gasto OCTUBRE | AG10: Gasto DICIEMBRE | AK10: Junio | AL10: =SUMIFS(Tabla1[€/SERVICIO],Tabla1[13/06/2018],">=01/06/2018",Tabla1[13/06/2018],"<=30/06/2018",Tabla1[MATRICULA],B5) -> 0 | AM10: =SUMIFS(Tabla1[€/GASOIL],Tabla1[13/06/2018],">=01/06/2018",Tabla1[13/06/2018],"<=30/06/2018",Tabla1[DESCRIPCIÓN DEL SERVICIO],"Repostar GASOIL / TALLER",Tabla1[MATRICULA],B5) -> 43.2 | AN10: =SUMIFS(Tabla1[€/GASOIL],Tabla1[13/06/2018],">=01/06/2018",Tabla1[13/06/2018],"<=30/06/2018",Tabla1[DESCRIPCIÓN DEL SERVICIO],"Repostar GASOIL / Externo",Tabla1[MATRICULA],B5) -> 0 | AP10: Junio | AQ10: =SUMIFS(Tabla1[€/SERVICIO],Tabla1[13/06/2018],">=01/06/2018",Tabla1[13/06/2018],"<=30/06/2018",Tabla1[MATRICULA],B6) -> 0 | AR10: =SUMIFS(Tabla1[€/GASOIL],Tabla1[13/06/2018],">=01/06/2018",Tabla1[13/06/2018],"<=30/06/2018",Tabla1[DESCRIPCIÓN DEL SERVICIO],"Repostar GASOIL / TALLER",Tabla1[MATRICULA],B6) -> 71.28 | AS10: =SUMIFS(Tabla1[€/GASOIL],Tabla1[13/06/2018],">=01/06/2018",Tabla1[13/06/2018],"<=30/06/2018",Tabla1[DESCRIPCIÓN DEL SERVICIO],"Repostar GASOIL / Externo",Tabla1[MATRICULA],B6) -> 0 | AU10: Junio | AV10: =SUMIFS(Tabla1[€/SERVICIO],Tabla1[13/06/2018],">=01/06/2018",Tabla1[13/06/2018],"<=30/06/2018",Tabla1[MATRICULA],B7) -> 0 | AW10: =SUMIFS(Tabla1[€/GASOIL],Tabla1[13/06/2018],">=01/06/2018",Tabla1[13/06/2018],"<=30/06/2018",Tabla1[DESCRIPCIÓN DEL SERVICIO],"Repostar GASOIL / TALLER",Tabla1[MATRICULA],B7) -> 0 | AX10: =SUMIFS(Tabla1[€/GASOIL],Tabla1[13/06/2018],">=01/06/2018",Tabla1[13/06/2018],"<=30/06/2018",Tabla1[DESCRIPCIÓN DEL SERVICIO],"Repostar GASOIL / Externo",Tabla1[MATRICULA],B7) -> 0 | AZ10: Junio | BA10: =SUMIFS(Tabla1[€/SERVICIO],Tabla1[13/06/2018],">=01/06/2018",Tabla1[13/06/2018],"<=30/06/2018",Tabla1[MATRICULA],B8) -> 0 | BB10: =SUMIFS(Tabla1[€/GASOIL],Tabla1[13/06/2018],">=01/06/2018",Tabla1[13/06/2018],"<=30/06/2018",Tabla1[DESCRIPCIÓN DEL SERVICIO],"Repostar GASOIL / TALLER",Tabla1[MATRICULA],B8) -> 0 | BC10: =SUMIFS(Tabla1[€/GASOIL],Tabla1[13/06/2018],">=01/06/2018",Tabla1[13/06/2018],"<=30/06/2018",Tabla1[DESCRIPCIÓN DEL SERVICIO],"Repostar GASOIL / Externo",Tabla1[MATRICULA],B8) -> 0 | BE10: Junio | BF10: =SUMIFS(Tabla1[€/SERVICIO],Tabla1[13/06/2018],">=01/06/2018",Tabla1[13/06/2018],"<=30/06/2018",Tabla1[MATRICULA],B9) -> 0 | BG10: =SUMIFS(Tabla1[€/GASOIL],Tabla1[13/06/2018],">=01/06/2018",Tabla1[13/06/2018],"<=30/06/2018",Tabla1[DESCRIPCIÓN DEL SERVICIO],"Repostar GASOIL / TALLER",Tabla1[MATRICULA],B9) -> 42.12 | BH10: =SUMIFS(Tabla1[€/GASOIL],Tabla1[13/06/2018],">=01/06/2018",Tabla1[13/06/2018],"<=30/06/2018",Tabla1[DESCRIPCIÓN DEL SERVICIO],"Repostar GASOIL / Externo",Tabla1[MATRICULA],B9) -> 0 | BJ10: Junio | BK10: =SUMIFS(Tabla1[€/SERVICIO],Tabla1[13/06/2018],">=01/06/2018",Tabla1[13/06/2018],"<=30/06/2018",Tabla1[MATRICULA],B10) -> 0 | BL10: =SUMIFS(Tabla1[€/GASOIL],Tabla1[13/06/2018],">=01/06/2018",Tabla1[13/06/2018],"<=30/06/2018",Tabla1[DESCRIPCIÓN DEL SERVICIO],"Repostar GASOIL / TALLER",Tabla1[MATRICULA],B10) -> 37.8 | BM10: =SUMIFS(Tabla1[€/GASOIL],Tabla1[13/06/2018],">=01/06/2018",Tabla1[13/06/2018],"<=30/06/2018",Tabla1[DESCRIPCIÓN DEL SERVICIO],"Repostar GASOIL / Externo",Tabla1[MATRICULA],B10) -> 36 | BO10: Junio | BP10: =SUMIFS(Tabla1[€/SERVICIO],Tabla1[13/06/2018],">=01/06/2018",Tabla1[13/06/2018],"<=30/06/2018",Tabla1[MATRICULA],B11) -> 0 | BQ10: =SUMIFS(Tabla1[€/GASOIL],Tabla1[13/06/2018],">=01/06/2018",Tabla1[13/06/2018],"<=30/06/2018",Tabla1[DESCRIPCIÓN DEL SERVICIO],"Repostar GASOIL / TALLER",Tabla1[MATRICULA],B11) -> 0 | BR10: =SUMIFS(Tabla1[€/GASOIL],Tabla1[13/06/2018],">=01/06/2018",Tabla1[13/06/2018],"<=30/06/2018",Tabla1[DESCRIPCIÓN DEL SERVICIO],"Repostar GASOIL / Externo",Tabla1[MATRICULA],B11) -> 0 | BT10: Junio | BU10: =SUMIFS(Tabla1[€/SERVICIO],Tabla1[13/06/2018],">=01/06/2018",Tabla1[13/06/2018],"<=30/06/2018",Tabla1[MATRICULA],B12) -> 0 | BV10: =SUMIFS(Tabla1[€/GASOIL],Tabla1[13/06/2018],">=01/06/2018",Tabla1[13/06/2018],"<=30/06/2018",Tabla1[DESCRIPCIÓN DEL SERVICIO],"Repostar GASOIL / TALLER",Tabla1[MATRICULA],B12) -> 66.96 | BW10: =SUMIFS(Tabla1[€/GASOIL],Tabla1[13/06/2018],">=01/06/2018",Tabla1[13/06/2018],"<=30/06/2018",Tabla1[DESCRIPCIÓN DEL SERVICIO],"Repostar GASOIL / Externo",Tabla1[MATRICULA],B12) -> 0 | BY10: Junio | BZ10: =SUMIFS(Tabla1[€/SERVICIO],Tabla1[13/06/2018],">=01/06/2018",Tabla1[13/06/2018],"<=30/06/2018",Tabla1[MATRICULA],B13) -> 0 | CA10: =SUMIFS(Tabla1[€/GASOIL],Tabla1[13/06/2018],">=01/06/2018",Tabla1[13/06/2018],"<=30/06/2018",Tabla1[DESCRIPCIÓN DEL SERVICIO],"Repostar GASOIL / TALLER",Tabla1[MATRICULA],B13) -> 34.56 | CB10: =SUMIFS(Tabla1[€/GASOIL],Tabla1[13/06/2018],">=01/06/2018",Tabla1[13/06/2018],"<=30/06/2018",Tabla1[DESCRIPCIÓN DEL SERVICIO],"Repostar GASOIL / Externo",Tabla1[MATRICULA],B13) -> 0
A11: ='DATOS PARA LISTAS DE MENU'!B10 -> BMW | B11: ='DATOS PARA LISTAS DE MENU'!C10 -> 8146 DCG | C11: ='DATOS PARA LISTAS DE MENU'!A10 -> T3 | E11: =SUMIF(Tabla1[MATRICULA],B11,Tabla1[€/SERVICIO]) -> 0 | G11: =SUMIFS(Tabla1[€/GASOIL],Tabla1[MATRICULA],B11,Tabla1[DESCRIPCIÓN DEL SERVICIO],"Repostar GASOIL / TALLER") -> 0 | I11: =SUMIFS(Tabla1[€/GASOIL],Tabla1[MATRICULA],B11,Tabla1[DESCRIPCIÓN DEL SERVICIO],"Repostar GASOIL / Externo") -> 0 | M11: Mantenimiento | N11: Gasoil Taller | O11: Gasoil Externo | Q11: Mantenimiento | R11: Gasoil Taller | S11: Gasoil Externo | U11: Mantenimiento | V11: Gasoil Taller | W11: Gasoil Externo | Y11: Mantenimiento | Z11: Gasoil Taller | AA11: Gasoil Externo | AC11: Mantenimiento | AD11: Gasoil Taller | AE11: Gasoil Externo | AG11: Mantenimiento | AH11: Gasoil Taller | AI11: Gasoil Externo | AK11: Julio | AL11: =SUMIFS(Tabla1[€/SERVICIO],Tabla1[13/06/2018],">=01/07/2018",Tabla1[13/06/2018],"<=31/07/2018",Tabla1[MATRICULA],B5) -> 0 | AM11: =SUMIFS(Tabla1[€/GASOIL],Tabla1[13/06/2018],">=01/07/2018",Tabla1[13/06/2018],"<=31/07/2018",Tabla1[DESCRIPCIÓN DEL SERVICIO],"Repostar GASOIL / TALLER",Tabla1[MATRICULA],B5) -> 0 | AN11: =SUMIFS(Tabla1[€/GASOIL],Tabla1[13/06/2018],">=01/07/2018",Tabla1[13/06/2018],"<=31/07/2018",Tabla1[DESCRIPCIÓN DEL SERVICIO],"Repostar GASOIL / Externo",Tabla1[MATRICULA],B5) -> 0 | AP11: Julio | AQ11: =SUMIFS(Tabla1[€/SERVICIO],Tabla1[13/06/2018],">=01/07/2018",Tabla1[13/06/2018],"<=31/07/2018",Tabla1[MATRICULA],B6) -> 0 | AR11: =SUMIFS(Tabla1[€/GASOIL],Tabla1[13/06/2018],">=01/07/2018",Tabla1[13/06/2018],"<=31/07/2018",Tabla1[DESCRIPCIÓN DEL SERVICIO],"Repostar GASOIL / TALLER",Tabla1[MATRICULA],B6) -> 0 | AS11: =SUMIFS(Tabla1[€/GASOIL],Tabla1[13/06/2018],">=01/07/2018",Tabla1[13/06/2018],"<=31/07/2018",Tabla1[DESCRIPCIÓN DEL SERVICIO],"Repostar GASOIL / Externo",Tabla1[MATRICULA],B6) -> 0 | AU11: Julio | AV11: =SUMIFS(Tabla1[€/SERVICIO],Tabla1[13/06/2018],">=01/07/2018",Tabla1[13/06/2018],"<=31/07/2018",Tabla1[MATRICULA],B7) -> 0 | AW11: =SUMIFS(Tabla1[€/GASOIL],Tabla1[13/06/2018],">=01/07/2018",Tabla1[13/06/2018],"<=31/07/2018",Tabla1[DESCRIPCIÓN DEL SERVICIO],"Repostar GASOIL / TALLER",Tabla1[MATRICULA],B7) -> 0 | AX11: =SUMIFS(Tabla1[€/GASOIL],Tabla1[13/06/2018],">=01/07/2018",Tabla1[13/06/2018],"<=31/07/2018",Tabla1[DESCRIPCIÓN DEL SERVICIO],"Repostar GASOIL / Externo",Tabla1[MATRICULA],B7) -> 0 | AZ11: Julio | BA11: =SUMIFS(Tabla1[€/SERVICIO],Tabla1[13/06/2018],">=01/07/2018",Tabla1[13/06/2018],"<=31/07/2018",Tabla1[MATRICULA],B8) -> 0 | BB11: =SUMIFS(Tabla1[€/GASOIL],Tabla1[13/06/2018],">=01/07/2018",Tabla1[13/06/2018],"<=31/07/2018",Tabla1[DESCRIPCIÓN DEL SERVICIO],"Repostar GASOIL / TALLER",Tabla1[MATRICULA],B8) -> 0 | BC11: =SUMIFS(Tabla1[€/GASOIL],Tabla1[13/06/2018],">=01/07/2018",Tabla1[13/06/2018],"<=31/07/2018",Tabla1[DESCRIPCIÓN DEL SERVICIO],"Repostar GASOIL / Externo",Tabla1[MATRICULA],B8) -> 0 | BE11: Julio | BF11: =SUMIFS(Tabla1[€/SERVICIO],Tabla1[13/06/2018],">=01/07/2018",Tabla1[13/06/2018],"<=31/07/2018",Tabla1[MATRICULA],B9) -> 0 | BG11: =SUMIFS(Tabla1[€/GASOIL],Tabla1[13/06/2018],">=01/07/2018",Tabla1[13/06/2018],"<=31/07/2018",Tabla1[DESCRIPCIÓN DEL SERVICIO],"Repostar GASOIL / TALLER",Tabla1[MATRICULA],B9) -> 0 | BH11: =SUMIFS(Tabla1[€/GASOIL],Tabla1[13/06/2018],">=01/07/2018",Tabla1[13/06/2018],"<=31/07/2018",Tabla1[DESCRIPCIÓN DEL SERVICIO],"Repostar GASOIL / Externo",Tabla1[MATRICULA],B9) -> 0 | BJ11: Julio | BK11: =SUMIFS(Tabla1[€/SERVICIO],Tabla1[13/06/2018],">=01/07/2018",Tabla1[13/06/2018],"<=31/07/2018",Tabla1[MATRICULA],B10) -> 0 | BL11: =SUMIFS(Tabla1[€/GASOIL],Tabla1[13/06/2018],">=01/07/2018",Tabla1[13/06/2018],"<=31/07/2018",Tabla1[DESCRIPCIÓN DEL SERVICIO],"Repostar GASOIL / TALLER",Tabla1[MATRICULA],B10) -> 0 | BM11: =SUMIFS(Tabla1[€/GASOIL],Tabla1[13/06/2018],">=01/07/2018",Tabla1[13/06/2018],"<=31/07/2018",Tabla1[DESCRIPCIÓN DEL SERVICIO],"Repostar GASOIL / Externo",Tabla1[MATRICULA],B10) -> 0 | BO11: Julio | BP11: =SUMIFS(Tabla1[€/SERVICIO],Tabla1[13/06/2018],">=01/07/2018",Tabla1[13/06/2018],"<=31/07/2018",Tabla1[MATRICULA],B11) -> 0 | BQ11: =SUMIFS(Tabla1[€/GASOIL],Tabla1[13/06/2018],">=01/07/2018",Tabla1[13/06/2018],"<=31/07/2018",Tabla1[DESCRIPCIÓN DEL SERVICIO],"Repostar GASOIL / TALLER",Tabla1[MATRICULA],B11) -> 0 | BR11: =SUMIFS(Tabla1[€/GASOIL],Tabla1[13/06/2018],">=01/07/2018",Tabla1[13/06/2018],"<=31/07/2018",Tabla1[DESCRIPCIÓN DEL SERVICIO],"Repostar GASOIL / Externo",Tabla1[MATRICULA],B11) -> 0 | BT11: Julio | BU11: =SUMIFS(Tabla1[€/SERVICIO],Tabla1[13/06/2018],">=01/07/2018",Tabla1[13/06/2018],"<=31/07/2018",Tabla1[MATRICULA],B12) -> 0 | BV11: =SUMIFS(Tabla1[€/GASOIL],Tabla1[13/06/2018],">=01/07/2018",Tabla1[13/06/2018],"<=31/07/2018",Tabla1[DESCRIPCIÓN DEL SERVICIO],"Repostar GASOIL / TALLER",Tabla1[MATRICULA],B12) -> 0 | BW11: =SUMIFS(Tabla1[€/GASOIL],Tabla1[13/06/2018],">=01/07/2018",Tabla1[13/06/2018],"<=31/07/2018",Tabla1[DESCRIPCIÓN DEL SERVICIO],"Repostar GASOIL / Externo",Tabla1[MATRICULA],B12) -> 0 | BY11: Julio | BZ11: =SUMIFS(Tabla1[€/SERVICIO],Tabla1[13/06/2018],">=01/07/2018",Tabla1[13/06/2018],"<=31/07/2018",Tabla1[MATRICULA],B13) -> 0 | CA11: =SUMIFS(Tabla1[€/GASOIL],Tabla1[13/06/2018],">=01/07/2018",Tabla1[13/06/2018],"<=31/07/2018",Tabla1[DESCRIPCIÓN DEL SERVICIO],"Repostar GASOIL / TALLER",Tabla1[MATRICULA],B13) -> 0 | CB11: =SUMIFS(Tabla1[€/GASOIL],Tabla1[13/06/2018],">=01/07/2018",Tabla1[13/06/2018],"<=31/07/2018",Tabla1[DESCRIPCIÓN DEL SERVICIO],"Repostar GASOIL / Externo",Tabla1[MATRICULA],B13) -> 0
A12: ='DATOS PARA LISTAS DE MENU'!B11 -> OPEL INSIGNIA | B12: ='DATOS PARA LISTAS DE MENU'!C11 -> 6189 GRV | C12: ='DATOS PARA LISTAS DE MENU'!A11 -> T4 | E12: =SUMIF(Tabla1[MATRICULA],B12,Tabla1[€/SERVICIO]) -> 0 | G12: =SUMIFS(Tabla1[€/GASOIL],Tabla1[MATRICULA],B12,Tabla1[DESCRIPCIÓN DEL SERVICIO],"Repostar GASOIL / TALLER") -> 66.96 | I12: =SUMIFS(Tabla1[€/GASOIL],Tabla1[MATRICULA],B12,Tabla1[DESCRIPCIÓN DEL SERVICIO],"Repostar GASOIL / Externo") -> 0 | M12: =SUMIFS(Tabla1[€/SERVICIO],Tabla1[13/06/2018],">=01/02/2018",Tabla1[13/06/2018],"<=28/02/2018") -> 0 | N12: =SUMIFS(Tabla1[€/GASOIL],Tabla1[13/06/2018],">=01/02/2018",Tabla1[13/06/2018],"<=28/02/2018",Tabla1[DESCRIPCIÓN DEL SERVICIO],"Repostar GASOIL / TALLER") -> 0 | O12: =SUMIFS(Tabla1[€/GASOIL],Tabla1[13/06/2018],">=01/02/2018",Tabla1[13/06/2018],"<=28/02/2018",Tabla1[DESCRIPCIÓN DEL SERVICIO],"Repostar GASOIL / Externo") -> 76 | Q12: =SUMIFS(Tabla1[€/SERVICIO],Tabla1[13/06/2018],">=01/04/2018",Tabla1[13/06/2018],"<=30/04/2018") -> 0 | R12: =SUMIFS(Tabla1[€/GASOIL],Tabla1[13/06/2018],">=01/04/2018",Tabla1[13/06/2018],"<=31/04/2018",Tabla1[DESCRIPCIÓN DEL SERVICIO],"Repostar GASOIL / TALLER") -> 0 | S12: =SUMIFS(Tabla1[€/GASOIL],Tabla1[13/06/2018],">=01/04/2018",Tabla1[13/06/2018],"<=31/04/2018",Tabla1[DESCRIPCIÓN DEL SERVICIO],"Repostar GASOIL / Externo") -> 0 | U12: =SUMIFS(Tabla1[€/SERVICIO],Tabla1[13/06/2018],">=01/06/2018",Tabla1[13/06/2018],"<=30/06/2018") -> 0 | V12: =SUMIFS(Tabla1[€/GASOIL],Tabla1[13/06/2018],">=01/06/2018",Tabla1[13/06/2018],"<=30/06/2018",Tabla1[DESCRIPCIÓN DEL SERVICIO],"Repostar GASOIL / TALLER") -> 295.92 | W12: =SUMIFS(Tabla1[€/GASOIL],Tabla1[13/06/2018],">=01/06/2018",Tabla1[13/06/2018],"<=30/06/2018",Tabla1[DESCRIPCIÓN DEL SERVICIO],"Repostar GASOIL / Externo") -> 36 | Y12: =SUMIFS(Tabla1[€/SERVICIO],Tabla1[13/06/2018],">=01/08/2018",Tabla1[13/06/2018],"<=31/08/2018") -> 0 | Z12: =SUMIFS(Tabla1[€/GASOIL],Tabla1[13/06/2018],">=01/08/2018",Tabla1[13/06/2018],"<=31/08/2018",Tabla1[DESCRIPCIÓN DEL SERVICIO],"Repostar GASOIL / TALLER") -> 0 | AA12: =SUMIFS(Tabla1[€/GASOIL],Tabla1[13/06/2018],">=01/08/2018",Tabla1[13/06/2018],"<=31/08/2018",Tabla1[DESCRIPCIÓN DEL SERVICIO],"Repostar GASOIL / Externo") -> 0 | AC12: =SUMIFS(Tabla1[€/SERVICIO],Tabla1[13/06/2018],">=01/10/2018",Tabla1[13/06/2018],"<=31/10/2018") -> 0 | AD12: =SUMIFS(Tabla1[€/GASOIL],Tabla1[13/06/2018],">=01/10/2018",Tabla1[13/06/2018],"<=31/10/2018",Tabla1[DESCRIPCIÓN DEL SERVICIO],"Repostar GASOIL / TALLER") -> 0 | AE12: =SUMIFS(Tabla1[€/GASOIL],Tabla1[13/06/2018],">=01/10/2018",Tabla1[13/06/2018],"<=31/10/2018",Tabla1[DESCRIPCIÓN DEL SERVICIO],"Repostar GASOIL / Externo") -> 0 | AG12: =SUMIFS(Tabla1[€/SERVICIO],Tabla1[13/06/2018],">=01/12/2018",Tabla1[13/06/2018],"<=31/12/2018") -> 0 | AH12: =SUMIFS(Tabla1[€/GASOIL],Tabla1[13/06/2018],">=01/12/2018",Tabla1[13/06/2018],"<=31/12/2018",Tabla1[DESCRIPCIÓN DEL SERVICIO],"Repostar GASOIL / TALLER") -> 0 | AI12: =SUMIFS(Tabla1[€/GASOIL],Tabla1[13/06/2018],">=01/12/2018",Tabla1[13/06/2018],"<=31/12/2018",Tabla1[DESCRIPCIÓN DEL SERVICIO],"Repostar GASOIL / Externo") -> 0 | AK12: Agosto | AL12: =SUMIFS(Tabla1[€/SERVICIO],Tabla1[13/06/2018],">=01/08/2018",Tabla1[13/06/2018],"<=31/08/2018",Tabla1[MATRICULA],B5) -> 0 | AM12: =SUMIFS(Tabla1[€/GASOIL],Tabla1[13/06/2018],">=01/08/2018",Tabla1[13/06/2018],"<=31/08/2018",Tabla1[DESCRIPCIÓN DEL SERVICIO],"Repostar GASOIL / TALLER",Tabla1[MATRICULA],B5) -> 0 | AN12: =SUMIFS(Tabla1[€/GASOIL],Tabla1[13/06/2018],">=01/08/2018",Tabla1[13/06/2018],"<=31/08/2018",Tabla1[DESCRIPCIÓN DEL SERVICIO],"Repostar GASOIL / Externo",Tabla1[MATRICULA],B5) -> 0 | AP12: Agosto | AQ12: =SUMIFS(Tabla1[€/SERVICIO],Tabla1[13/06/2018],">=01/08/2018",Tabla1[13/06/2018],"<=31/08/2018",Tabla1[MATRICULA],B6) -> 0 | AR12: =SUMIFS(Tabla1[€/GASOIL],Tabla1[13/06/2018],">=01/08/2018",Tabla1[13/06/2018],"<=31/08/2018",Tabla1[DESCRIPCIÓN DEL SERVICIO],"Repostar GASOIL / TALLER",Tabla1[MATRICULA],B6) -> 0 | AS12: =SUMIFS(Tabla1[€/GASOIL],Tabla1[13/06/2018],">=01/08/2018",Tabla1[13/06/2018],"<=31/08/2018",Tabla1[DESCRIPCIÓN DEL SERVICIO],"Repostar GASOIL / Externo",Tabla1[MATRICULA],B6) -> 0 | AU12: Agosto | AV12: =SUMIFS(Tabla1[€/SERVICIO],Tabla1[13/06/2018],">=01/08/2018",Tabla1[13/06/2018],"<=31/08/2018",Tabla1[MATRICULA],B7) -> 0 | AW12: =SUMIFS(Tabla1[€/GASOIL],Tabla1[13/06/2018],">=01/08/2018",Tabla1[13/06/2018],"<=31/08/2018",Tabla1[DESCRIPCIÓN DEL SERVICIO],"Repostar GASOIL / TALLER",Tabla1[MATRICULA],B7) -> 0 | AX12: =SUMIFS(Tabla1[€/GASOIL],Tabla1[13/06/2018],">=01/08/2018",Tabla1[13/06/2018],"<=31/08/2018",Tabla1[DESCRIPCIÓN DEL SERVICIO],"Repostar GASOIL / Externo",Tabla1[MATRICULA],B7) -> 0 | AZ12: Agosto | BA12: =SUMIFS(Tabla1[€/SERVICIO],Tabla1[13/06/2018],">=01/08/2018",Tabla1[13/06/2018],"<=31/08/2018",Tabla1[MATRICULA],B8) -> 0 | BB12: =SUMIFS(Tabla1[€/GASOIL],Tabla1[13/06/2018],">=01/08/2018",Tabla1[13/06/2018],"<=31/08/2018",Tabla1[DESCRIPCIÓN DEL SERVICIO],"Repostar GASOIL / TALLER",Tabla1[MATRICULA],B8) -> 0 | BC12: =SUMIFS(Tabla1[€/GASOIL],Tabla1[13/06/2018],">=01/08/2018",Tabla1[13/06/2018],"<=31/08/2018",Tabla1[DESCRIPCIÓN DEL SERVICIO],"Repostar GASOIL / Externo",Tabla1[MATRICULA],B8) -> 0 | BE12: Agosto | BF12: =SUMIFS(Tabla1[€/SERVICIO],Tabla1[13/06/2018],">=01/08/2018",Tabla1[13/06/2018],"<=31/08/2018",Tabla1[MATRICULA],B9) -> 0 | BG12: =SUMIFS(Tabla1[€/GASOIL],Tabla1[13/06/2018],">=01/08/2018",Tabla1[13/06/2018],"<=31/08/2018",Tabla1[DESCRIPCIÓN DEL SERVICIO],"Repostar GASOIL / TALLER",Tabla1[MATRICULA],B9) -> 0 | BH12: =SUMIFS(Tabla1[€/GASOIL],Tabla1[13/06/2018],">=01/08/2018",Tabla1[13/06/2018],"<=31/08/2018",Tabla1[DESCRIPCIÓN DEL SERVICIO],"Repostar GASOIL / Externo",Tabla1[MATRICULA],B9) -> 0 | BJ12: Agosto | BK12: =SUMIFS(Tabla1[€/SERVICIO],Tabla1[13/06/2018],">=01/08/2018",Tabla1[13/06/2018],"<=31/08/2018",Tabla1[MATRICULA],B10) -> 0 | BL12: =SUMIFS(Tabla1[€/GASOIL],Tabla1[13/06/2018],">=01/08/2018",Tabla1[13/06/2018],"<=31/08/2018",Tabla1[DESCRIPCIÓN DEL SERVICIO],"Repostar GASOIL / TALLER",Tabla1[MATRICULA],B10) -> 0 | BM12: =SUMIFS(Tabla1[€/GASOIL],Tabla1[13/06/2018],">=01/08/2018",Tabla1[13/06/2018],"<=31/08/2018",Tabla1[DESCRIPCIÓN DEL SERVICIO],"Repostar GASOIL / Externo",Tabla1[MATRICULA],B10) -> 0 | BO12: Agosto | BP12: =SUMIFS(Tabla1[€/SERVICIO],Tabla1[13/06/2018],">=01/08/2018",Tabla1[13/06/2018],"<=31/08/2018",Tabla1[MATRICULA],B11) -> 0 | BQ12: =SUMIFS(Tabla1[€/GASOIL],Tabla1[13/06/2018],">=01/08/2018",Tabla1[13/06/2018],"<=31/08/2018",Tabla1[DESCRIPCIÓN DEL SERVICIO],"Repostar GASOIL / TALLER",Tabla1[MATRICULA],B11) -> 0 | BR12: =SUMIFS(Tabla1[€/GASOIL],Tabla1[13/06/2018],">=01/08/2018",Tabla1[13/06/2018],"<=31/08/2018",Tabla1[DESCRIPCIÓN DEL SERVICIO],"Repostar GASOIL / Externo",Tabla1[MATRICULA],B11) -> 0 | BT12: Agosto | BU12: =SUMIFS(Tabla1[€/SERVICIO],Tabla1[13/06/2018],">=01/08/2018",Tabla1[13/06/2018],"<=31/08/2018",Tabla1[MATRICULA],B12) -> 0 | BV12: =SUMIFS(Tabla1[€/GASOIL],Tabla1[13/06/2018],">=01/08/2018",Tabla1[13/06/2018],"<=31/08/2018",Tabla1[DESCRIPCIÓN DEL SERVICIO],"Repostar GASOIL / TALLER",Tabla1[MATRICULA],B12) -> 0 | BW12: =SUMIFS(Tabla1[€/GASOIL],Tabla1[13/06/2018],">=01/08/2018",Tabla1[13/06/2018],"<=31/08/2018",Tabla1[DESCRIPCIÓN DEL SERVICIO],"Repostar GASOIL / Externo",Tabla1[MATRICULA],B12) -> 0 | BY12: Agosto | BZ12: =SUMIFS(Tabla1[€/SERVICIO],Tabla1[13/06/2018],">=01/08/2018",Tabla1[13/06/2018],"<=31/08/2018",Tabla1[MATRICULA],B13) -> 0 | CA12: =SUMIFS(Tabla1[€/GASOIL],Tabla1[13/06/2018],">=01/08/2018",Tabla1[13/06/2018],"<=31/08/2018",Tabla1[DESCRIPCIÓN DEL SERVICIO],"Repostar GASOIL / TALLER",Tabla1[MATRICULA],B13) -> 0 | CB12: =SUMIFS(Tabla1[€/GASOIL],Tabla1[13/06/2018],">=01/08/2018",Tabla1[13/06/2018],"<=31/08/2018",Tabla1[DESCRIPCIÓN DEL SERVICIO],"Repostar GASOIL / Externo",Tabla1[MATRICULA],B13) -> 0
A13: ='DATOS PARA LISTAS DE MENU'!B12 -> PEUGEOT 206 | B13: ='DATOS PARA LISTAS DE MENU'!C12 -> 0035 DNY | C13: ='DATOS PARA LISTAS DE MENU'!A12 -> T1 | E13: =SUMIF(Tabla1[MATRICULA],B13,Tabla1[€/SERVICIO]) -> 0 | G13: =SUMIFS(Tabla1[€/GASOIL],Tabla1[MATRICULA],B13,Tabla1[DESCRIPCIÓN DEL SERVICIO],"Repostar GASOIL / TALLER") -> 34.56 | I13: =SUMIFS(Tabla1[€/GASOIL],Tabla1[MATRICULA],B13,Tabla1[DESCRIPCIÓN DEL SERVICIO],"Repostar GASOIL / Externo") -> 0 | AK13: Septiembre | AL13: =SUMIFS(Tabla1[€/SERVICIO],Tabla1[13/06/2018],">=01/09/2018",Tabla1[13/06/2018],"<=30/09/2018",Tabla1[MATRICULA],B5) -> 0 | AM13: =SUMIFS(Tabla1[€/GASOIL],Tabla1[13/06/2018],">=01/09/2018",Tabla1[13/06/2018],"<=30/08/2018",Tabla1[DESCRIPCIÓN DEL SERVICIO],"Repostar GASOIL / TALLER",Tabla1[MATRICULA],B5) -> 0 | AN13: =SUMIFS(Tabla1[€/GASOIL],Tabla1[13/06/2018],">=01/09/2018",Tabla1[13/06/2018],"<=30/08/2018",Tabla1[DESCRIPCIÓN DEL SERVICIO],"Repostar GASOIL / Externo",Tabla1[MATRICULA],B5) -> 0 | AP13: Septiembre | AQ13: =SUMIFS(Tabla1[€/SERVICIO],Tabla1[13/06/2018],">=01/09/2018",Tabla1[13/06/2018],"<=30/09/2018",Tabla1[MATRICULA],B6) -> 0 | AR13: =SUMIFS(Tabla1[€/GASOIL],Tabla1[13/06/2018],">=01/09/2018",Tabla1[13/06/2018],"<=30/08/2018",Tabla1[DESCRIPCIÓN DEL SERVICIO],"Repostar GASOIL / TALLER",Tabla1[MATRICULA],B6) -> 0 | AS13: =SUMIFS(Tabla1[€/GASOIL],Tabla1[13/06/2018],">=01/09/2018",Tabla1[13/06/2018],"<=30/08/2018",Tabla1[DESCRIPCIÓN DEL SERVICIO],"Repostar GASOIL / Externo",Tabla1[MATRICULA],B6) -> 0 | AU13: Septiembre | AV13: =SUMIFS(Tabla1[€/SERVICIO],Tabla1[13/06/2018],">=01/09/2018",Tabla1[13/06/2018],"<=30/09/2018",Tabla1[MATRICULA],B7) -> 0 | AW13: =SUMIFS(Tabla1[€/GASOIL],Tabla1[13/06/2018],">=01/09/2018",Tabla1[13/06/2018],"<=30/08/2018",Tabla1[DESCRIPCIÓN DEL SERVICIO],"Repostar GASOIL / TALLER",Tabla1[MATRICULA],B7) -> 0 | AX13: =SUMIFS(Tabla1[€/GASOIL],Tabla1[13/06/2018],">=01/09/2018",Tabla1[13/06/2018],"<=30/08/2018",Tabla1[DESCRIPCIÓN DEL SERVICIO],"Repostar GASOIL / Externo",Tabla1[MATRICULA],B7) -> 0 | AZ13: Septiembre | BA13: =SUMIFS(Tabla1[€/SERVICIO],Tabla1[13/06/2018],">=01/09/2018",Tabla1[13/06/2018],"<=30/09/2018",Tabla1[MATRICULA],B8) -> 0 | BB13: =SUMIFS(Tabla1[€/GASOIL],Tabla1[13/06/2018],">=01/09/2018",Tabla1[13/06/2018],"<=30/08/2018",Tabla1[DESCRIPCIÓN DEL SERVICIO],"Repostar GASOIL / TALLER",Tabla1[MATRICULA],B8) -> 0 | BC13: =SUMIFS(Tabla1[€/GASOIL],Tabla1[13/06/2018],">=01/09/2018",Tabla1[13/06/2018],"<=30/08/2018",Tabla1[DESCRIPCIÓN DEL SERVICIO],"Repostar GASOIL / Externo",Tabla1[MATRICULA],B8) -> 0 | BE13: Septiembre | BF13: =SUMIFS(Tabla1[€/SERVICIO],Tabla1[13/06/2018],">=01/09/2018",Tabla1[13/06/2018],"<=30/09/2018",Tabla1[MATRICULA],B9) -> 0 | BG13: =SUMIFS(Tabla1[€/GASOIL],Tabla1[13/06/2018],">=01/09/2018",Tabla1[13/06/2018],"<=30/08/2018",Tabla1[DESCRIPCIÓN DEL SERVICIO],"Repostar GASOIL / TALLER",Tabla1[MATRICULA],B9) -> 0 | BH13: =SUMIFS(Tabla1[€/GASOIL],Tabla1[13/06/2018],">=01/09/2018",Tabla1[13/06/2018],"<=30/08/2018",Tabla1[DESCRIPCIÓN DEL SERVICIO],"Repostar GASOIL / Externo",Tabla1[MATRICULA],B9) -> 0 | BJ13: Septiembre | BK13: =SUMIFS(Tabla1[€/SERVICIO],Tabla1[13/06/2018],">=01/09/2018",Tabla1[13/06/2018],"<=30/09/2018",Tabla1[MATRICULA],B10) -> 0 | BL13: =SUMIFS(Tabla1[€/GASOIL],Tabla1[13/06/2018],">=01/09/2018",Tabla1[13/06/2018],"<=30/08/2018",Tabla1[DESCRIPCIÓN DEL SERVICIO],"Repostar GASOIL / TALLER",Tabla1[MATRICULA],B10) -> 0 | BM13: =SUMIFS(Tabla1[€/GASOIL],Tabla1[13/06/2018],">=01/09/2018",Tabla1[13/06/2018],"<=30/08/2018",Tabla1[DESCRIPCIÓN DEL SERVICIO],"Repostar GASOIL / Externo",Tabla1[MATRICULA],B10) -> 0 | BO13: Septiembre | BP13: =SUMIFS(Tabla1[€/SERVICIO],Tabla1[13/06/2018],">=01/09/2018",Tabla1[13/06/2018],"<=30/09/2018",Tabla1[MATRICULA],B11) -> 0 | BQ13: =SUMIFS(Tabla1[€/GASOIL],Tabla1[13/06/2018],">=01/09/2018",Tabla1[13/06/2018],"<=30/08/2018",Tabla1[DESCRIPCIÓN DEL SERVICIO],"Repostar GASOIL / TALLER",Tabla1[MATRICULA],B11) -> 0 | BR13: =SUMIFS(Tabla1[€/GASOIL],Tabla1[13/06/2018],">=01/09/2018",Tabla1[13/06/2018],"<=30/08/2018",Tabla1[DESCRIPCIÓN DEL SERVICIO],"Repostar GASOIL / Externo",Tabla1[MATRICULA],B11) -> 0 | BT13: Septiembre | BU13: =SUMIFS(Tabla1[€/SERVICIO],Tabla1[13/06/2018],">=01/09/2018",Tabla1[13/06/2018],"<=30/09/2018",Tabla1[MATRICULA],B12) -> 0 | BV13: =SUMIFS(Tabla1[€/GASOIL],Tabla1[13/06/2018],">=01/09/2018",Tabla1[13/06/2018],"<=30/08/2018",Tabla1[DESCRIPCIÓN DEL SERVICIO],"Repostar GASOIL / TALLER",Tabla1[MATRICULA],B12) -> 0 | BW13: =SUMIFS(Tabla1[€/GASOIL],Tabla1[13/06/2018],">=01/09/2018",Tabla1[13/06/2018],"<=30/08/2018",Tabla1[DESCRIPCIÓN DEL SERVICIO],"Repostar GASOIL / Externo",Tabla1[MATRICULA],B12) -> 0 | BY13: Septiembre | BZ13: =SUMIFS(Tabla1[€/SERVICIO],Tabla1[13/06/2018],">=01/09/2018",Tabla1[13/06/2018],"<=30/09/2018",Tabla1[MATRICULA],B13) -> 0 | CA13: =SUMIFS(Tabla1[€/GASOIL],Tabla1[13/06/2018],">=01/09/2018",Tabla1[13/06/2018],"<=30/08/2018",Tabla1[DESCRIPCIÓN DEL SERVICIO],"Repostar GASOIL / TALLER",Tabla1[MATRICULA],B13) -> 0 | CB13: =SUMIFS(Tabla1[€/GASOIL],Tabla1[13/06/2018],">=01/09/2018",Tabla1[13/06/2018],"<=30/08/2018",Tabla1[DESCRIPCIÓN DEL SERVICIO],"Repostar GASOIL / Externo",Tabla1[MATRICULA],B13) -> 0
E14: =SUMIF(Tabla1[MATRICULA],B14,Tabla1[€/SERVICIO]) -> 0 | G14: =SUMIFS(Tabla1[€/GASOIL],Tabla1[MATRICULA],B14,Tabla1[DESCRIPCIÓN DEL SERVICIO],"Repostar GASOIL / TALLER") -> 0 | I14: =SUMIFS(Tabla1[€/GASOIL],Tabla1[MATRICULA],B14,Tabla1[DESCRIPCIÓN DEL SERVICIO],"Repostar GASOIL / Externo") -> 0 | AK14: Octubre | AL14: =SUMIFS(Tabla1[€/SERVICIO],Tabla1[13/06/2018],">=01/10/2018",Tabla1[13/06/2018],"<=31/10/2018",Tabla1[MATRICULA],B5) -> 0 | AM14: =SUMIFS(Tabla1[€/GASOIL],Tabla1[13/06/2018],">=01/10/2018",Tabla1[13/06/2018],"<=31/10/2018",Tabla1[DESCRIPCIÓN DEL SERVICIO],"Repostar GASOIL / TALLER",Tabla1[MATRICULA],B5) -> 0 | AN14: =SUMIFS(Tabla1[€/GASOIL],Tabla1[13/06/2018],">=01/10/2018",Tabla1[13/06/2018],"<=31/10/2018",Tabla1[DESCRIPCIÓN DEL SERVICIO],"Repostar GASOIL / Externo",Tabla1[MATRICULA],B5) -> 0 | AP14: Octubre | AQ14: =SUMIFS(Tabla1[€/SERVICIO],Tabla1[13/06/2018],">=01/10/2018",Tabla1[13/06/2018],"<=31/10/2018",Tabla1[MATRICULA],B6) -> 0 | AR14: =SUMIFS(Tabla1[€/GASOIL],Tabla1[13/06/2018],">=01/10/2018",Tabla1[13/06/2018],"<=31/10/2018",Tabla1[DESCRIPCIÓN DEL SERVICIO],"Repostar GASOIL / TALLER",Tabla1[MATRICULA],B6) -> 0 | AS14: =SUMIFS(Tabla1[€/GASOIL],Tabla1[13/06/2018],">=01/10/2018",Tabla1[13/06/2018],"<=31/10/2018",Tabla1[DESCRIPCIÓN DEL SERVICIO],"Repostar GASOIL / Externo",Tabla1[MATRICULA],B6) -> 0 | AU14: Octubre | AV14: =SUMIFS(Tabla1[€/SERVICIO],Tabla1[13/06/2018],">=01/10/2018",Tabla1[13/06/2018],"<=31/10/2018",Tabla1[MATRICULA],B7) -> 0 | AW14: =SUMIFS(Tabla1[€/GASOIL],Tabla1[13/06/2018],">=01/10/2018",Tabla1[13/06/2018],"<=31/10/2018",Tabla1[DESCRIPCIÓN DEL SERVICIO],"Repostar GASOIL / TALLER",Tabla1[MATRICULA],B7) -> 0 | AX14: =SUMIFS(Tabla1[€/GASOIL],Tabla1[13/06/2018],">=01/10/2018",Tabla1[13/06/2018],"<=31/10/2018",Tabla1[DESCRIPCIÓN DEL SERVICIO],"Repostar GASOIL / Externo",Tabla1[MATRICULA],B7) -> 0 | AZ14: Octubre | BA14: =SUMIFS(Tabla1[€/SERVICIO],Tabla1[13/06/2018],">=01/10/2018",Tabla1[13/06/2018],"<=31/10/2018",Tabla1[MATRICULA],B8) -> 0 | BB14: =SUMIFS(Tabla1[€/GASOIL],Tabla1[13/06/2018],">=01/10/2018",Tabla1[13/06/2018],"<=31/10/2018",Tabla1[DESCRIPCIÓN DEL SERVICIO],"Repostar GASOIL / TALLER",Tabla1[MATRICULA],B8) -> 0 | BC14: =SUMIFS(Tabla1[€/GASOIL],Tabla1[13/06/2018],">=01/10/2018",Tabla1[13/06/2018],"<=31/10/2018",Tabla1[DESCRIPCIÓN DEL SERVICIO],"Repostar GASOIL / Externo",Tabla1[MATRICULA],B8) -> 0 | BE14: Octubre | BF14: =SUMIFS(Tabla1[€/SERVICIO],Tabla1[13/06/2018],">=01/10/2018",Tabla1[13/06/2018],"<=31/10/2018",Tabla1[MATRICULA],B9) -> 0 | BG14: =SUMIFS(Tabla1[€/GASOIL],Tabla1[13/06/2018],">=01/10/2018",Tabla1[13/06/2018],"<=31/10/2018",Tabla1[DESCRIPCIÓN DEL SERVICIO],"Repostar GASOIL / TALLER",Tabla1[MATRICULA],B9) -> 0 | BH14: =SUMIFS(Tabla1[€/GASOIL],Tabla1[13/06/2018],">=01/10/2018",Tabla1[13/06/2018],"<=31/10/2018",Tabla1[DESCRIPCIÓN DEL SERVICIO],"Repostar GASOIL / Externo",Tabla1[MATRICULA],B9) -> 0 | BJ14: Octubre | BK14: =SUMIFS(Tabla1[€/SERVICIO],Tabla1[13/06/2018],">=01/10/2018",Tabla1[13/06/2018],"<=31/10/2018",Tabla1[MATRICULA],B10) -> 0 | BL14: =SUMIFS(Tabla1[€/GASOIL],Tabla1[13/06/2018],">=01/10/2018",Tabla1[13/06/2018],"<=31/10/2018",Tabla1[DESCRIPCIÓN DEL SERVICIO],"Repostar GASOIL / TALLER",Tabla1[MATRICULA],B10) -> 0 | BM14: =SUMIFS(Tabla1[€/GASOIL],Tabla1[13/06/2018],">=01/10/2018",Tabla1[13/06/2018],"<=31/10/2018",Tabla1[DESCRIPCIÓN DEL SERVICIO],"Repostar GASOIL / Externo",Tabla1[MATRICULA],B10) -> 0 | BO14: Octubre | BP14: =SUMIFS(Tabla1[€/SERVICIO],Tabla1[13/06/2018],">=01/10/2018",Tabla1[13/06/2018],"<=31/10/2018",Tabla1[MATRICULA],B11) -> 0 | BQ14: =SUMIFS(Tabla1[€/GASOIL],Tabla1[13/06/2018],">=01/10/2018",Tabla1[13/06/2018],"<=31/10/2018",Tabla1[DESCRIPCIÓN DEL SERVICIO],"Repostar GASOIL / TALLER",Tabla1[MATRICULA],B11) -> 0 | BR14: =SUMIFS(Tabla1[€/GASOIL],Tabla1[13/06/2018],">=01/10/2018",Tabla1[13/06/2018],"<=31/10/2018",Tabla1[DESCRIPCIÓN DEL SERVICIO],"Repostar GASOIL / Externo",Tabla1[MATRICULA],B11) -> 0 | BT14: Octubre | BU14: =SUMIFS(Tabla1[€/SERVICIO],Tabla1[13/06/2018],">=01/10/2018",Tabla1[13/06/2018],"<=31/10/2018",Tabla1[MATRICULA],B12) -> 0 | BV14: =SUMIFS(Tabla1[€/GASOIL],Tabla1[13/06/2018],">=01/10/2018",Tabla1[13/06/2018],"<=31/10/2018",Tabla1[DESCRIPCIÓN DEL SERVICIO],"Repostar GASOIL / TALLER",Tabla1[MATRICULA],B12) -> 0 | BW14: =SUMIFS(Tabla1[€/GASOIL],Tabla1[13/06/2018],">=01/10/2018",Tabla1[13/06/2018],"<=31/10/2018",Tabla1[DESCRIPCIÓN DEL SERVICIO],"Repostar GASOIL / Externo",Tabla1[MATRICULA],B12) -> 0 | BY14: Octubre | BZ14: =SUMIFS(Tabla1[€/SERVICIO],Tabla1[13/06/2018],">=01/10/2018",Tabla1[13/06/2018],"<=31/10/2018",Tabla1[MATRICULA],B13) -> 0 | CA14: =SUMIFS(Tabla1[€/GASOIL],Tabla1[13/06/2018],">=01/10/2018",Tabla1[13/06/2018],"<=31/10/2018",Tabla1[DESCRIPCIÓN DEL SERVICIO],"Repostar GASOIL / TALLER",Tabla1[MATRICULA],B13) -> 0 | CB14: =SUMIFS(Tabla1[€/GASOIL],Tabla1[13/06/2018],">=01/10/2018",Tabla1[13/06/2018],"<=31/10/2018",Tabla1[DESCRIPCIÓN DEL SERVICIO],"Repostar GASOIL / Externo",Tabla1[MATRICULA],B13) -> 0
E15: =SUMIF(Tabla1[MATRICULA],B15,Tabla1[€/SERVICIO]) -> 0 | G15: =SUMIFS(Tabla1[€/GASOIL],Tabla1[MATRICULA],B15,Tabla1[DESCRIPCIÓN DEL SERVICIO],"Repostar GASOIL / TALLER") -> 0 | I15: =SUMIFS(Tabla1[€/GASOIL],Tabla1[MATRICULA],B15,Tabla1[DESCRIPCIÓN DEL SERVICIO],"Repostar GASOIL / Externo") -> 0 | AK15: Noviembre | AL15: =SUMIFS(Tabla1[€/SERVICIO],Tabla1[13/06/2018],">=01/11/2018",Tabla1[13/06/2018],"<=30/11/2018",Tabla1[MATRICULA],B5) -> 0 | AM15: =SUMIFS(Tabla1[€/GASOIL],Tabla1[13/06/2018],">=01/11/2018",Tabla1[13/06/2018],"<=30/11/2018",Tabla1[DESCRIPCIÓN DEL SERVICIO],"Repostar GASOIL / TALLER",Tabla1[MATRICULA],B5) -> 0 | AN15: =SUMIFS(Tabla1[€/GASOIL],Tabla1[13/06/2018],">=01/11/2018",Tabla1[13/06/2018],"<=30/11/2018",Tabla1[DESCRIPCIÓN DEL SERVICIO],"Repostar GASOIL / Externo",Tabla1[MATRICULA],B5) -> 0 | AP15: Noviembre | AQ15: =SUMIFS(Tabla1[€/SERVICIO],Tabla1[13/06/2018],">=01/11/2018",Tabla1[13/06/2018],"<=30/11/2018",Tabla1[MATRICULA],B6) -> 0 | AR15: =SUMIFS(Tabla1[€/GASOIL],Tabla1[13/06/2018],">=01/11/2018",Tabla1[13/06/2018],"<=30/11/2018",Tabla1[DESCRIPCIÓN DEL SERVICIO],"Repostar GASOIL / TALLER",Tabla1[MATRICULA],B6) -> 0 | AS15: =SUMIFS(Tabla1[€/GASOIL],Tabla1[13/06/2018],">=01/11/2018",Tabla1[13/06/2018],"<=30/11/2018",Tabla1[DESCRIPCIÓN DEL SERVICIO],"Repostar GASOIL / Externo",Tabla1[MATRICULA],B6) -> 0 | AU15: Noviembre | AV15: =SUMIFS(Tabla1[€/SERVICIO],Tabla1[13/06/2018],">=01/11/2018",Tabla1[13/06/2018],"<=30/11/2018",Tabla1[MATRICULA],B7) -> 0 | AW15: =SUMIFS(Tabla1[€/GASOIL],Tabla1[13/06/2018],">=01/11/2018",Tabla1[13/06/2018],"<=30/11/2018",Tabla1[DESCRIPCIÓN DEL SERVICIO],"Repostar GASOIL / TALLER",Tabla1[MATRICULA],B7) -> 0 | AX15: =SUMIFS(Tabla1[€/GASOIL],Tabla1[13/06/2018],">=01/11/2018",Tabla1[13/06/2018],"<=30/11/2018",Tabla1[DESCRIPCIÓN DEL SERVICIO],"Repostar GASOIL / Externo",Tabla1[MATRICULA],B7) -> 0 | AZ15: Noviembre | BA15: =SUMIFS(Tabla1[€/SERVICIO],Tabla1[13/06/2018],">=01/11/2018",Tabla1[13/06/2018],"<=30/11/2018",Tabla1[MATRICULA],B8) -> 0 | BB15: =SUMIFS(Tabla1[€/GASOIL],Tabla1[13/06/2018],">=01/11/2018",Tabla1[13/06/2018],"<=30/11/2018",Tabla1[DESCRIPCIÓN DEL SERVICIO],"Repostar GASOIL / TALLER",Tabla1[MATRICULA],B8) -> 0 | BC15: =SUMIFS(Tabla1[€/GASOIL],Tabla1[13/06/2018],">=01/11/2018",Tabla1[13/06/2018],"<=30/11/2018",Tabla1[DESCRIPCIÓN DEL SERVICIO],"Repostar GASOIL / Externo",Tabla1[MATRICULA],B8) -> 0 | BE15: Noviembre | BF15: =SUMIFS(Tabla1[€/SERVICIO],Tabla1[13/06/2018],">=01/11/2018",Tabla1[13/06/2018],"<=30/11/2018",Tabla1[MATRICULA],B9) -> 0 | BG15: =SUMIFS(Tabla1[€/GASOIL],Tabla1[13/06/2018],">=01/11/2018",Tabla1[13/06/2018],"<=30/11/2018",Tabla1[DESCRIPCIÓN DEL SERVICIO],"Repostar GASOIL / TALLER",Tabla1[MATRICULA],B9) -> 0 | BH15: =SUMIFS(Tabla1[€/GASOIL],Tabla1[13/06/2018],">=01/11/2018",Tabla1[13/06/2018],"<=30/11/2018",Tabla1[DESCRIPCIÓN DEL SERVICIO],"Repostar GASOIL / Externo",Tabla1[MATRICULA],B9) -> 0 | BJ15: Noviembre | BK15: =SUMIFS(Tabla1[€/SERVICIO],Tabla1[13/06/2018],">=01/11/2018",Tabla1[13/06/2018],"<=30/11/2018",Tabla1[MATRICULA],B10) -> 0 | BL15: =SUMIFS(Tabla1[€/GASOIL],Tabla1[13/06/2018],">=01/11/2018",Tabla1[13/06/2018],"<=30/11/2018",Tabla1[DESCRIPCIÓN DEL SERVICIO],"Repostar GASOIL / TALLER",Tabla1[MATRICULA],B10) -> 0 | BM15: =SUMIFS(Tabla1[€/GASOIL],Tabla1[13/06/2018],">=01/11/2018",Tabla1[13/06/2018],"<=30/11/2018",Tabla1[DESCRIPCIÓN DEL SERVICIO],"Repostar GASOIL / Externo",Tabla1[MATRICULA],B10) -> 0 | BO15: Noviembre | BP15: =SUMIFS(Tabla1[€/SERVICIO],Tabla1[13/06/2018],">=01/11/2018",Tabla1[13/06/2018],"<=30/11/2018",Tabla1[MATRICULA],B11) -> 0 | BQ15: =SUMIFS(Tabla1[€/GASOIL],Tabla1[13/06/2018],">=01/11/2018",Tabla1[13/06/2018],"<=30/11/2018",Tabla1[DESCRIPCIÓN DEL SERVICIO],"Repostar GASOIL / TALLER",Tabla1[MATRICULA],B11) -> 0 | BR15: =SUMIFS(Tabla1[€/GASOIL],Tabla1[13/06/2018],">=01/11/2018",Tabla1[13/06/2018],"<=30/11/2018",Tabla1[DESCRIPCIÓN DEL SERVICIO],"Repostar GASOIL / Externo",Tabla1[MATRICULA],B11) -> 0 | BT15: Noviembre | BU15: =SUMIFS(Tabla1[€/SERVICIO],Tabla1[13/06/2018],">=01/11/2018",Tabla1[13/06/2018],"<=30/11/2018",Tabla1[MATRICULA],B12) -> 0 | BV15: =SUMIFS(Tabla1[€/GASOIL],Tabla1[13/06/2018],">=01/11/2018",Tabla1[13/06/2018],"<=30/11/2018",Tabla1[DESCRIPCIÓN DEL SERVICIO],"Repostar GASOIL / TALLER",Tabla1[MATRICULA],B12) -> 0 | BW15: =SUMIFS(Tabla1[€/GASOIL],Tabla1[13/06/2018],">=01/11/2018",Tabla1[13/06/2018],"<=30/11/2018",Tabla1[DESCRIPCIÓN DEL SERVICIO],"Repostar GASOIL / Externo",Tabla1[MATRICULA],B12) -> 0 | BY15: Noviembre | BZ15: =SUMIFS(Tabla1[€/SERVICIO],Tabla1[13/06/2018],">=01/11/2018",Tabla1[13/06/2018],"<=30/11/2018",Tabla1[MATRICULA],B13) -> 0 | CA15: =SUMIFS(Tabla1[€/GASOIL],Tabla1[13/06/2018],">=01/11/2018",Tabla1[13/06/2018],"<=30/11/2018",Tabla1[DESCRIPCIÓN DEL SERVICIO],"Repostar GASOIL / TALLER",Tabla1[MATRICULA],B13) -> 0 | CB15: =SUMIFS(Tabla1[€/GASOIL],Tabla1[13/06/2018],">=01/11/2018",Tabla1[13/06/2018],"<=30/11/2018",Tabla1[DESCRIPCIÓN DEL SERVICIO],"Repostar GASOIL / Externo",Tabla1[MATRICULA],B13) -> 0
E16: =SUMIF(Tabla1[MATRICULA],B16,Tabla1[€/SERVICIO]) -> 0 | G16: =SUMIFS(Tabla1[€/GASOIL],Tabla1[MATRICULA],B16,Tabla1[DESCRIPCIÓN DEL SERVICIO],"Repostar GASOIL / TALLER") -> 0 | I16: =SUMIFS(Tabla1[€/GASOIL],Tabla1[MATRICULA],B16,Tabla1[DESCRIPCIÓN DEL SERVICIO],"Repostar GASOIL / Externo") -> 0 | AK16: Diciembre | AL16: =SUMIFS(Tabla1[€/SERVICIO],Tabla1[13/06/2018],">=01/12/2018",Tabla1[13/06/2018],"<=31/12/2018",Tabla1[MATRICULA],B5) -> 0 | AM16: =SUMIFS(Tabla1[€/GASOIL],Tabla1[13/06/2018],">=01/12/2018",Tabla1[13/06/2018],"<=31/12/2018",Tabla1[DESCRIPCIÓN DEL SERVICIO],"Repostar GASOIL / TALLER",Tabla1[MATRICULA],B5) -> 0 | AN16: =SUMIFS(Tabla1[€/GASOIL],Tabla1[13/06/2018],">=01/12/2018",Tabla1[13/06/2018],"<=31/12/2018",Tabla1[DESCRIPCIÓN DEL SERVICIO],"Repostar GASOIL / Externo",Tabla1[MATRICULA],B5) -> 0 | AP16: Diciembre | AQ16: =SUMIFS(Tabla1[€/SERVICIO],Tabla1[13/06/2018],">=01/12/2018",Tabla1[13/06/2018],"<=31/12/2018",Tabla1[MATRICULA],B6) -> 0 | AR16: =SUMIFS(Tabla1[€/GASOIL],Tabla1[13/06/2018],">=01/12/2018",Tabla1[13/06/2018],"<=31/12/2018",Tabla1[DESCRIPCIÓN DEL SERVICIO],"Repostar GASOIL / TALLER",Tabla1[MATRICULA],B6) -> 0 | AS16: =SUMIFS(Tabla1[€/GASOIL],Tabla1[13/06/2018],">=01/12/2018",Tabla1[13/06/2018],"<=31/12/2018",Tabla1[DESCRIPCIÓN DEL SERVICIO],"Repostar GASOIL / Externo",Tabla1[MATRICULA],B6) -> 0 | AU16: Diciembre | AV16: =SUMIFS(Tabla1[€/SERVICIO],Tabla1[13/06/2018],">=01/12/2018",Tabla1[13/06/2018],"<=31/12/2018",Tabla1[MATRICULA],B7) -> 0 | AW16: =SUMIFS(Tabla1[€/GASOIL],Tabla1[13/06/2018],">=01/12/2018",Tabla1[13/06/2018],"<=31/12/2018",Tabla1[DESCRIPCIÓN DEL SERVICIO],"Repostar GASOIL / TALLER",Tabla1[MATRICULA],B7) -> 0 | AX16: =SUMIFS(Tabla1[€/GASOIL],Tabla1[13/06/2018],">=01/12/2018",Tabla1[13/06/2018],"<=31/12/2018",Tabla1[DESCRIPCIÓN DEL SERVICIO],"Repostar GASOIL / Externo",Tabla1[MATRICULA],B7) -> 0 | AZ16: Diciembre | BA16: =SUMIFS(Tabla1[€/SERVICIO],Tabla1[13/06/2018],">=01/12/2018",Tabla1[13/06/2018],"<=31/12/2018",Tabla1[MATRICULA],B8) -> 0 | BB16: =SUMIFS(Tabla1[€/GASOIL],Tabla1[13/06/2018],">=01/12/2018",Tabla1[13/06/2018],"<=31/12/2018",Tabla1[DESCRIPCIÓN DEL SERVICIO],"Repostar GASOIL / TALLER",Tabla1[MATRICULA],B8) -> 0 | BC16: =SUMIFS(Tabla1[€/GASOIL],Tabla1[13/06/2018],">=01/12/2018",Tabla1[13/06/2018],"<=31/12/2018",Tabla1[DESCRIPCIÓN DEL SERVICIO],"Repostar GASOIL / Externo",Tabla1[MATRICULA],B8) -> 0 | BE16: Diciembre | BF16: =SUMIFS(Tabla1[€/SERVICIO],Tabla1[13/06/2018],">=01/12/2018",Tabla1[13/06/2018],"<=31/12/2018",Tabla1[MATRICULA],B9) -> 0 | BG16: =SUMIFS(Tabla1[€/GASOIL],Tabla1[13/06/2018],">=01/12/2018",Tabla1[13/06/2018],"<=31/12/2018",Tabla1[DESCRIPCIÓN DEL SERVICIO],"Repostar GASOIL / TALLER",Tabla1[MATRICULA],B9) -> 0 | BH16: =SUMIFS(Tabla1[€/GASOIL],Tabla1[13/06/2018],">=01/12/2018",Tabla1[13/06/2018],"<=31/12/2018",Tabla1[DESCRIPCIÓN DEL SERVICIO],"Repostar GASOIL / Externo",Tabla1[MATRICULA],B9) -> 0 | BJ16: Diciembre | BK16: =SUMIFS(Tabla1[€/SERVICIO],Tabla1[13/06/2018],">=01/12/2018",Tabla1[13/06/2018],"<=31/12/2018",Tabla1[MATRICULA],B10) -> 0 | BL16: =SUMIFS(Tabla1[€/GASOIL],Tabla1[13/06/2018],">=01/12/2018",Tabla1[13/06/2018],"<=31/12/2018",Tabla1[DESCRIPCIÓN DEL SERVICIO],"Repostar GASOIL / TALLER",Tabla1[MATRICULA],B10) -> 0 | BM16: =SUMIFS(Tabla1[€/GASOIL],Tabla1[13/06/2018],">=01/12/2018",Tabla1[13/06/2018],"<=31/12/2018",Tabla1[DESCRIPCIÓN DEL SERVICIO],"Repostar GASOIL / Externo",Tabla1[MATRICULA],B10) -> 0 | BO16: Diciembre | BP16: =SUMIFS(Tabla1[€/SERVICIO],Tabla1[13/06/2018],">=01/12/2018",Tabla1[13/06/2018],"<=31/12/2018",Tabla1[MATRICULA],B11) -> 0 | BQ16: =SUMIFS(Tabla1[€/GASOIL],Tabla1[13/06/2018],">=01/12/2018",Tabla1[13/06/2018],"<=31/12/2018",Tabla1[DESCRIPCIÓN DEL SERVICIO],"Repostar GASOIL / TALLER",Tabla1[MATRICULA],B11) -> 0 | BR16: =SUMIFS(Tabla1[€/GASOIL],Tabla1[13/06/2018],">=01/12/2018",Tabla1[13/06/2018],"<=31/12/2018",Tabla1[DESCRIPCIÓN DEL SERVICIO],"Repostar GASOIL / Externo",Tabla1[MATRICULA],B11) -> 0 | BT16: Diciembre | BU16: =SUMIFS(Tabla1[€/SERVICIO],Tabla1[13/06/2018],">=01/12/2018",Tabla1[13/06/2018],"<=31/12/2018",Tabla1[MATRICULA],B12) -> 0 | BV16: =SUMIFS(Tabla1[€/GASOIL],Tabla1[13/06/2018],">=01/12/2018",Tabla1[13/06/2018],"<=31/12/2018",Tabla1[DESCRIPCIÓN DEL SERVICIO],"Repostar GASOIL / TALLER",Tabla1[MATRICULA],B12) -> 0 | BW16: =SUMIFS(Tabla1[€/GASOIL],Tabla1[13/06/2018],">=01/12/2018",Tabla1[13/06/2018],"<=31/12/2018",Tabla1[DESCRIPCIÓN DEL SERVICIO],"Repostar GASOIL / Externo",Tabla1[MATRICULA],B12) -> 0 | BY16: Diciembre | BZ16: =SUMIFS(Tabla1[€/SERVICIO],Tabla1[13/06/2018],">=01/12/2018",Tabla1[13/06/2018],"<=31/12/2018",Tabla1[MATRICULA],B13) -> 0 | CA16: =SUMIFS(Tabla1[€/GASOIL],Tabla1[13/06/2018],">=01/12/2018",Tabla1[13/06/2018],"<=31/12/2018",Tabla1[DESCRIPCIÓN DEL SERVICIO],"Repostar GASOIL / TALLER",Tabla1[MATRICULA],B13) -> 0 | CB16: =SUMIFS(Tabla1[€/GASOIL],Tabla1[13/06/2018],">=01/12/2018",Tabla1[13/06/2018],"<=31/12/2018",Tabla1[DESCRIPCIÓN DEL SERVICIO],"Repostar GASOIL / Externo",Tabla1[MATRICULA],B13) -> 0
A17: 2018-05-30
A18: 13/06/2018 | B18: MATRICULA | C18: CONCEPTO | D18: KM | E18: DESCRIPCIÓN DEL SERVICIO | F18: €/SERVICIO | G18: INICIO | H18: FIN | I18: LITROS | J18: €/GASOIL | K18: PROVEEDOR / TALLER
A19: 2018-01-02 | B19: 8661 FPY | C19: Mantenimiento | E19: Trabajos Varios | F19: 421.89 | I19: =H19-G19 -> 0 | J19: =I19*$K$3 -> 0 | K19: Taller Mecánico Humanes
A20: 2018-01-31 | B20: 8661 FPY | C20: Repostar Gasoil | E20: Repostar GASOIL / Externo | I20: 30 | J20: 34
A21: 2018-02-07 | B21: 8661 FPY | C21: Repostar Gasoil | E21: Repostar GASOIL / Externo | I21: 27 | J21: 31
A22: 2018-02-08 | B22: 8661 FPY | C22: Repostar Gasoil | E22: Repostar GASOIL / Externo | I22: 17 | J22: 20
A23: 2018-02-15 | B23: 8518 HYY | C23: Repostar Gasoil | D23: 111000 | E23: Repostar GASOIL / Externo | I23: 22 | J23: 25
A24: 2018-03-02 | B24: 8661 FPY | C24: Repostar Gasoil | E24: Repostar GASOIL / Externo | I24: 13 | J24: 15
A25: 2018-03-08 | B25: 8661 FPY | C25: Repostar Gasoil | E25: Repostar GASOIL / Externo | I25: 30 | J25: 35
A26: 2018-03-14 | B26: 8661 FPY | C26: Repostar Gasoil | D26: 430523 | E26: Repostar GASOIL / Externo | I26: 22 | J26: 25
A27: 2018-03-21 | B27: 8661 FPY | C27: Repostar Gasoil | D27: 431200 | E27: Repostar GASOIL / Externo | I27: 23 | J27: 26
A28: 2018-03-22 | B28: 8661 FPY | C28: Repostar Gasoil | E28: Repostar GASOIL / Externo | I28: 18 | J28: 20
A29: 2018-04-05 | B29: 8661 FPY | C29: Repostar Gasoil | E29: Repostar GASOIL / Externo | I29: 26 | J29: 30
A30: 2018-04-25 | B30: 8661 FPY | C30: Repostar Gasoil | E30: Repostar GASOIL / Externo | I30: 26 | J30: 30
A31: 2018-05-04 | B31: 8661 FPY | C31: Repostar Gasoil | E31: Repostar GASOIL / Externo | I31: 17 | J31: 20
A32: 2018-05-10 | B32: 8661 FPY | C32: Repostar Gasoil | E32: Repostar GASOIL / Externo | I32: 25 | J32: 30
A33: 2018-05-17 | B33: 8661 FPY | C33: Repostar Gasoil | E33: Repostar GASOIL / Externo | I33: 25 | J33: 30
A34: 2018-05-23 | B34: 8661 FPY | C34: Repostar Gasoil | E34: Repostar GASOIL / Externo | I34: 33 | J34: 41
A35: 2018-05-23 | B35: 8661 FPY | C35: Mantenimiento | E35: Latiguillo engrase turbo | F35: 752.24 | K35: Taller mecánico humanes
A36: 2018-05-29 | B36: 8661 FPY | C36: Repostar Gasoil | D36: 439650 | E36: Repostar GASOIL / Externo | I36: 24 | J36: 30
A37: 2018-06-05 | B37: 5343 HZY | C37: Repostar Gasoil | D37: 75462 | E37: Repostar GASOIL / TALLER | G37: 608 | H37: 647 | I37: =Tabla1[[#This Row],[FIN]]-Tabla1[[#This Row],[INICIO]] -> 39 | J37: =Tabla1[[#This Row],[LITROS]]*$K$3 -> 42.12
A38: 2018-06-07 | B38: 8518 HYY | C38: Repostar Gasoil | D38: 124000 | E38: Repostar GASOIL / Externo | I38: 28.4 | J38: 36
A39: 2018-06-07 | B39: 8343 HLJ | C39: Repostar Gasoil | D39: 75462 | E39: Repostar GASOIL / TALLER | G39: 608 | H39: 647 | I39: =Tabla1[[#This Row],[FIN]]-Tabla1[[#This Row],[INICIO]] -> 39 | J39: =Tabla1[[#This Row],[LITROS]]*$K$3 -> 42.12
A40: 2018-06-08 | B40: 6189 GRV | C40: Repostar Gasoil | D40: 221651 | E40: Repostar GASOIL / TALLER | G40: 647 | H40: 709 | I40: =Tabla1[[#This Row],[FIN]]-Tabla1[[#This Row],[INICIO]] -> 62 | J40: =Tabla1[[#This Row],[LITROS]]*$K$3 -> 66.96
A41: 2018-06-11 | B41: 9069 GZH | C41: Repostar Gasoil | D41: 177051 | E41: Repostar GASOIL / TALLER | G41: 709 | H41: 749 | I41: =Tabla1[[#This Row],[FIN]]-Tabla1[[#This Row],[INICIO]] -> 40 | J41: =Tabla1[[#This Row],[LITROS]]*$K$3 -> 43.2
A42: 2018-06-12 | B42: 8518 HYY | C42: Repostar Gasoil | D42: 124670 | E42: Repostar GASOIL / TALLER | G42: 749 | H42: 784 | I42: =Tabla1[[#This Row],[FIN]]-Tabla1[[#This Row],[INICIO]] -> 35 | J42: =Tabla1[[#This Row],[LITROS]]*$K$3 -> 37.8
A43: 2018-06-12 | B43: 8343 HLJ | C43: Repostar Gasoil | D43: 75913 | E43: Repostar GASOIL / TALLER | G43: 784 | H43: 811 | I43: =Tabla1[[#This Row],[FIN]]-Tabla1[[#This Row],[INICIO]] -> 27 | J43: =Tabla1[[#This Row],[LITROS]]*$K$3 -> 29.16
A44: 2018-06-12 | B44: 0035 DNY | C44: Repostar Gasoil | D44: 143202 | E44: Repostar GASOIL / TALLER | G44: 811 | H44: 843 | I44: =H44-G44 -> 32 | J44: =I44*$K$3 -> 34.56
A45: 2018-06-13 | B45: 0035 DNY

Sheet DATOS PARA LISTAS DE MENU
A1: HAGO HOJA CONTROL EL 06/06/2018 - DATOS ANTERIORES COGIDOS DE FACTURAS
A2: TRABAJADOR | B2: VEHICULO | C2: MATRICULA | D2: BASTIDOR | E2: ACEITE | F2: PROVEEDOR | G2: CONCEPTO | H2: DESCRIPCION DEL SERVICIO | I2: MEDIA (PRECIO LITRO GASOIL)
I3: € | J3: Fecha
A4: T1 | B4: FURGONETA | C4: 9069 GZH | F4: Repuestos Hidalgo | G4: Mantenimiento | H4: Repostar GASOIL / TALLER | I4: 1.07 | J4: 2018-01-10
A5: T2 | B5: FURGONETA | C5: 8343 HLJ | F5: Taller Mecánico Humanes | G5: Repostar Gasoil | H5: Repostar GASOIL / Externo | I5: 1.09 | J5: 2018-05-08
A6: T3 | B6: FURGONETA | C6: 5485 DFJ | H6: Cambiar Aceite Motor
A7: T4 | B7: COCHE ROJO | C7: 8661 FPY | H7: Cambiar Filtro Aceite
A8: T1 | B8: MERCEDES | C8: 5343 HZY | H8: Cambiar Filtro Combustible
A9: T2 | B9: COCHE BLANCO | C9: 8518 HYY | H9: Cambiar Filtro Aire
A10: T3 | B10: BMW | C10: 8146 DCG | H10: Cambiar Pastillas de freno
A11: T4 | B11: OPEL INSIGNIA | C11: 6189 GRV | H11: Cambiar Discos de Freno
A12: T1 | B12: PEUGEOT 206 | C12: 0035 DNY | H12: Cambiar ruedas
H13: Correa de distribución
H14: Bomba de Agua
H15: Líquido refrigerante
H16: Líquido de frenos
H17: Latiguillo engrase turbo
H18: Trabajos Varios

Sheet REFERENCIAS MAS PEDIDAS (hidden)
B6: REMESA | C6: FECHA RECIBO | D6: Suma de IMPORTE
B7: (en blanco) | C7: 2017-09-30 | D7: 6969.28
C8: 2017-10-06 | D8: 12853.37
C9: 2017-10-10 | D9: 520.48
C10: 2017-10-15 | D10: 7809.67
C11: (en blanco) | D11: 150897.59
B12: Total general | D12: 179050.39
